{"text_format":"1","workbook":"xlsx","n_sheets":23,"sheets":["Cover Page","Facility Info","Operational Data","Operational Summary","Perf. Form 1","Energy Form 1","Permit Compliance","Improvements","Public Liasion","CO2 N2O","Residues","Water","Air (periodic)","Air (CEMS)","HCl","SO2","NOx","TOC","Particulates","CO 0.5 hourly","CO 95% 10 min","NH3","Template changes log"],"not_rendered":{"charts":8,"images":4,"macros":1,"external_links":0,"defined_names":23,"comments":1,"pivot_tables":0},"unopened":[],"bounds":{"document_bytes":16777216,"sheet_cells":100000,"rows_first":2000,"rows_last":500,"rows_between":2000,"halvings":0,"cell_chars":16384,"cell_head_chars":4096},"cells_cut":0,"cells_raw":0,"read":"whole","date_system":"1900"}

{"sheet":"Cover Page","index":0,"n_rows":53,"n_cols":11,"rows_kept":53,"cut":false,"hidden":false,"merged":[[48,2,48,3],[48,6,48,8],[52,2,52,3],[36,1,36,8],[40,2,40,8],[42,2,42,4],[44,2,44,4],[46,2,46,3],[46,6,46,8],[13,10,18,12],[34,1,34,8],[0,3,5,6],[7,1,23,8],[28,1,28,8],[30,1,30,8],[32,1,32,8]]}
[null,null,null,"Add company logo"]
[null,null,null,null,null,null,null,null,null,null,"Template version 25.1a (for incinerators) - 27/11/25"]
[]
[null,null,null,null,null,null,null,null,null,null,"Note that there is another version of this template available for co-incinerators"]
[]
[]
[]
[null,"Add photo"]
[]
[]
[]
[]
[null,null,null,null,null,null,null,null,null,null,"Notes:"]
[null,null,null,null,null,null,null,null,null,null,"This template may require adjustments by individual operators to meet specific reporting requirements as defined in the site Permit(s)"]
[]
[]
[]
[]
[]
[]
[]
[]
[]
[]
[]
[]
[]
[]
[null,"Annual Performance Report 2025"]
[]
[null,"Permit EPR/BR4551IC"]
[]
[null,"Kent Enviropower Limited"]
[]
[null,"Allington Incinerator, Allington Quarry"]
[]
[null,"Kent Enviropower Limited"]
[]
[null,"Year:",2025]
[]
[null,"Address:","Laverstoke Road, Allington, Maidstone, Kent. ME16 0LE"]
[]
[null,"Tel: ","0844 736 9990"]
[]
[null,"Email: "]
[]
[null,"Prepared by:","Trevor Ellis",null,null,"Position:","Environment Manager"]
[]
[null,"Approved by:","Tony Stanbridge",null,null,"Position:","General Manager"]
[]
[null,"Version:",1]
[]
[null,"Issue Date:","31st January 2026"]

{"sheet":"Facility Info","index":1,"n_rows":86,"n_cols":11,"rows_kept":86,"cut":false,"hidden":false,"merged":[[85,0,88,8],[4,0,21,8],[25,0,57,8],[4,10,20,13],[25,10,34,13],[58,0,84,8]]}
[{"$f":"+'Cover Page'!$B$29","v":"Annual Performance Report 2025"},null,null,null,{"$f":"+'Cover Page'!$B$33","v":"Kent Enviropower Limited"}]
[]
["Plant Description and Design",null,null,null,null,null,null,null,null,null,"Notes:"]
[]
["nstallation Description\n\nThe Installation receives non hazardous municipal and industrial waste, recovers recyclable elements for reuse and eliminates the combustible element of the residue by burning in a fluidised bed furnace.  Energy is recovered from the process and converted to electricity in place of non-renewable fossil fuels. The combustion gases are cleaned to meet the standards required by the Directive before discharge from a tall chimney. Ashes and other solid residues are removed from the installation.\n\nThe Installation covers the site and the entire EfW plant including all EfW lines, waste reception, storage, on-site pre-treatment facilities, water, fuel and air supply systems, boiler, facilities for the treatment of exhaust gases, on-site facilities for treatment or storage of residues and waste water, stack, devices and systems for controlling combustion operations, recording and monitoring conditions.\n\nThe Installation has a design throughput of approx 580,000 tonnes per annum with an EfW capacity approx 560,000 tonnes per annum. The transfer loading station receives food waste and clean source separated recyclables which it reloads for onward transport and recovery.  There is a single waste reception followed by three independent waste treatment lines each complete with a heat recovery boiler, acid gas abatement, bag filter and a separate flue in the chimney. The heat produced from the combustion of the waste is used to generate steam in the boilers and the steam is then combined and passed to a steam turbine which generates approx 34.5 MW of electrical energy for export to the National Grid.",null,null,null,null,null,null,null,null,null,"Include summary of plant design, design capacity, no. of combustion lines, electrical and heat capacity and any other general information that describes the facility, its location and purpose "]
[]
[]
[]
[]
[]
[]
[]
[]
[]
[]
[]
[]
[]
[]
[]
[]
[]
[]
["Summary of Operational Processes and Procedures"]
[]
["Raw Materials\nWaste is delivered to the plant in road vehicles which are weighed before proceeding to the tipping\nhall. This is a fully enclosed building, maintained under slight negative pressure to ensure that no\nodours, dust or litter can escape the building. The vehicles carry either unsorted mixed municipal\nwaste, sorted waste for recycling or mixed recyclable waste and non recyclable waste and each tip\ninto the appropriate section of the tipping hall.\nThe unsorted mixed waste (black bag) is transferred by crane grab to a waste shredding line, it then\nmoves forward through a metals extraction section where ferrous metals are removed for recycling\nbefore moving to the prepared fuel bunker.\nThe facility also operates as a waste transfer site. It receives clean mixed recyclates and food wastes\ncollected in the community and loads them in bulk onto their designated transport vehicles for transport\noff site for recovery.\nA crane grab in the prepared fuel bunker both mixes the waste and charges the hoppers of the three\nincineration lines.\nHydrated lime for the flue gas cleaning process is delivered by bulk tanker and offloaded pneumatically\ninto three 125m3 silos vented through a reverse pulse jet filter.\nActivated carbon for the flue gas cleaning process is stored in dedicated silos that are pneumatically\nfilled from delivery trucks. There are three silos, one for each line, each equipped with filters to prevent\ndust emissions during filling.\nUrea, dissolved in water is stored in a fully bunded tank and is injected into the furnaces as necessary\nto control NOx emissions.\nCaustic soda for water treatment resin regeneration is delivered by bulk tanker and offloaded into a\n5.5 m3 tank with scrubber, inside the demineralisation area.\nHydrochloric acid for water treatment resin regeneration is delivered by bulk tanker and offloaded into\na 5.5 m3 tank vented through the caustic soda scrubber in a bund outside the demineralisation area.\nVarious other water treatment chemicals are delivered in appropriate containers and stored in bunded\nareas.\nGas oil for the combustion chamber burners and on-site vehicles is stored in a fully bunded 150 m3\ntank.\nSand for the fluidised bed furnaces is stored in 3 silos each of 55 cubic meters capacity.\nVarious maintenance materials (oils, greases, insulants, antifreezes, welding and fire fighting gases\netc.) are stored in the appropriate manner.\n                                                                                                                                                                                                                                                                                                                                                                                                                                                                                                                                                                                                                                                                                                                                                                                                                                                                                                                                                                                                                                                                                                                                        \n                                                                                                                                                                                                                                                                                                                                                                                                                                                                                         Combustion Process:-  The technology employed for incineration is the ROWITEC unit which uses a fluidised bed process.\nThe design has an inclined air distributor plate with a number of separate air supply chambers providing\ndifferential air flows across the bed, causing a revolving action. This technique promotes rapid and\nuniform mixing of the sand and bottom ash and ensures that heavy inert and non-combustible material\nmigrates to the sides of the bed where they can easily be removed.\nAn angled furnace wall above the fluidised bed zone restrains bed expansion under high fluidising air\nflows and so minimises particulate carry over. The elliptical patterns of air flow converge in the centre\nof the combustion area ensuring effective vertical and lateral turbulent mixing and high combustion\nefficiency and uniformity.\nThe waste is burned on a bed consisting of sand and ash that is held in suspension by an upward flow\nof combustion air that circulates the combustion mixture up to the throat of the furnace.\nThe furnace operating design is based on a thermal capacity of 53.8MW at full load and this can be\nachieved over the typical range of waste calorific values expected with municipal waste.\nThe combustion air system provides the furnace with the total air requirements for fluidisation and\ncombustion. Primary air is supplied to the bottom of the combustion chamber and fluidises the bed.\nThis air is extracted from the waste reception and storage buildings and destroys all odours in the\ncombustion chamber.\nEach furnace is equipped with two fuel oil burners for use at start-up to heat the furnace and also\nduring extreme reductions in waste fuel calorific value when the temperature of the furnace would\notherwise fall below 850 degrees Centigrade.\nCombustion control of the furnace will be achieved through a combination of furnace bed and freeboard\ntemperature control, primary air flow control, oxygen control within the flue gas and furnace load.\nRecirculated flue gas is fed to the furnace bed as a cooling medium to control the furnace bed\ntemperature and also to assist the control of NOx by influencing the combustion temperature conditions\nwithin the furnace.\nThe furnace bed is managed to remove non-combustible material (bottom ash) from the bed and\nmaintain the sand level within the optimum operating range. Bottom ashes produced in the furnace\ntogether with sand migrate down the slope of the furnace to the discharge section located at each side\nof the bed. The bottom ash and sand are both withdrawn from the discharge sections of the bed by\ntwo water-cooled discharge screw conveyors. Material passing out of the screw conveyors is\ndischarged to a vibrating screen. Undersize material is returned to the sand hopper for re-use within\nthe furnace while the oversized material is sent off site for recovery or re-use or landfill.",null,null,null,null,null,null,null,null,null,"Include summary of key processes and procedures such as (but not limited to); waste reception, control rooms, grate, bed and boiler, energy & heat  generation, cooling systems, residue management, emission controls, health and safety systems, maintenance"]
[]
[]
[]
[]
[]
[]
[]
[]
[]
[]
[]
[]
[]
[]
[]
[]
[]
[]
[]
[]
[]
[]
[]
[]
[]
[]
[]
[]
[]
[]
[]
[]
["\nEnergy Recovery\nHot gases from the furnace pass through to a boiler designed to generate steam. The boiler comprises\ntwo fully water cooled radiation chambers, a single pass horizontal plain tube convective heating\nsurface, incorporating a three stage convective superheater unit and a plain tube economiser section.\nThe economiser is designed for high velocity gas flow to minimise the reformation of dioxins in the\ncritical de Novo synthesis range.\nSteam is generated at 65 bar and a final temperature of 420 degrees Centigrade.\nThe high pressure steam from all three boilers feeds into a common header which in turn will feed a\ncondensing steam turbine that will generate electricity. Steam exiting the turbine will be condensed in\nan air cooled condenser and the condensate returned to the boilers.\nGas Cleaning\nThe plant is designed to meet the requirements of the Industrial Emissions Directive as a minimum for\nreleases to air by a combination of main process design and operation and abatement equipment.\nFlue gases pass from the boiler to the gas cleaning equipment. The gas passes to an electrostatic\nprecipitator (ESP) for the separation of ash carried over from the furnace with the flue gas. Material\ncollected in the ESP will be discharged by means of rotary valves and chain conveyors and then\npneumatically fed to the ash silos or re-injected into the flue gas cleaning system.\nGases leaving the ESP enter the gas cleaning system. This comprises a circo clean reactor and bag\nfilter system. Gases entering the circo clean reactor will be at a temperature of 190 to 230 degrees C\nand will come into contact with a mixture of water, hydrated lime and activated carbon that have been\ninjected into the reactor. The reactor is designed to reduce or remove acidic pollutants such as HCl,\nSO2 and HF by the use of the hydrated lime and dioxins and furans, PCBs, PAHs, mercury vapour and\nheavy metal salts such as mercury chloride by the use of the activated carbon. The injected water enhances the reactions and cools the gas. The control system of the circo clean reactor optimises the\nuse of reactants by balancing the feed rate with the concentration of the pollutants entering the circo\nclean reactor.\nThe final stage of the gas cleaning system is the bag filter unit which separates the particulate material\nfrom the flue gas. The baghouse filter consists of compartments each of which contains a number of\ntubular filter bags. A thick porous layer of particulate builds on the bag surfaces to form a filter cake\nwhich efficiently removes ultra fine particles from the gas stream and the excess lime continues to\nreact with the acid gases.\nBag house residue is discharged from the compartments via the integrated buffer storage by a closed\npneumatic conveying system into the reaction product silos. Silos are equipped with a filter, hopper\nheating and fluidisation system to assist discharge. The residue is then discharged directly into road\nvehicles under dust free conditions for transport off site to a licensed facility.\nNitrogen oxides (NOx) abatement is achieved by the use of both flue gas recirculation (FGR) and\nselective non-catalytic reduction (SNCR). The SNCR is based on the injection of urea into the furnace\nchambers before the boilers and before the lime and carbon injection and before the gas passes to\nbag filters.\nThe cleaned gas then discharges to atmosphere via three 80-metre flues in a common stack at an\nefflux velocity in excess of 15 ms-1 at maximum throughput.\nAncillary Operations\nDemineralised water is required to compensate for boiler blowdown losses. A package\ndemineralisation plant provides this water. The ion exchange resins are regenerated using sodium\nhydroxide and hydrochloric acid and the regeneration effluent is routed through a neutralisation tank\nto the collection pit for reuse where possible.\nAsh Handling\nBottom ash, the combined boiler and ESP ash and the flue gas treatment residue (FGTR) from the\nbag filter system, are each sent for separate disposal off site by licensed contractors subject to waste\nlicensing legislation. FGTR is not mixed with any other ash at any time. The bottom ash is likely to be\nsubject to ferrous and non ferrous metals extraction by the contractors before disposal or reuse. All\noperations will be subject to waste licensing legislation and be tracked by the Environment Agency. At\nleast quarterly sampling of the bottom ash will be carried out to ensure effective burn out is being\nachieved by testing for the “loss on ignition” of the residual ash. All other solid waste residues arising\nfrom the operation of the process will be removed from site, in enclosed containers, for disposal by\nsuitable contractors.\nLiquid Effluent and Site Drainage\nUncontaminated surface water from the roads and parking area that is not reused within the process\nwill be discharged to sewer.\n"]
[]
[]
[]
[]
[]
[]
[]
[]
[]
[]
[]
[]
[]
[]
[]
[]
[]
[]
[]
[]
[]
[]
[]
[]
[]
[]
["Emissions Monitoring\nEmissions from the stack are continuously monitored for: particulate, carbon monoxide (CO), ammonia\n(NH3), sulphur dioxide (SO2), hydrogen chloride (HCl), oxygen (O2), nitrogen oxides (NOx) \nNitrous Oxide (N2O) Carbon Dioxide (CO2) and volatile\norganic compounds (VOC). In addition periodic sampling and measurement will be carried out for\nmetals cadmium (Cd), thallium (Tl), mercury (Hg), antimony (Sb), arsenic (As), lead (Pb), chromium\n(Cr), cobalt (Co), copper (Cu), manganese (Mn), nickel (Ni), vanadium (V), dioxins and furans, dioxin\nlike PCBs and hydrogen fluoride (HF). Periodic measurements are carried out\nbi annually and in some instances annually.\n"]

{"sheet":"Operational Data","index":2,"n_rows":66,"n_cols":10,"rows_kept":66,"cut":false,"hidden":false,"merged":[[4,9,23,9],[25,9,29,9],[54,0,58,0],[34,1,39,1],[3,1,3,2],[10,1,22,1],[26,1,28,1],[7,2,7,3]]}
[{"$f":"+'Cover Page'!$B$29","v":"Annual Performance Report 2025"},null,null,null,{"$f":"+'Cover Page'!$B$33","v":"Kent Enviropower Limited"}]
[]
["Operational Data"]
["Plant Size:",560000,null,"tonnes pa",null,null,null,null,null,"Notes:"]
["Nominal net thermal input:",161.4,"MWth",null,null,null,null,null,null,"* Export capacity = nominal generation capacity at the generator terminals minus nominal parasitic load.\n\n** CHP and district heating plants only - put N/A if no heat export.\n\n***  Combusted tonnage = tonnes delivered in period + (tonnes in bunker at start of period – tonnes in bunker at end of period), or equivalent calculation depending on plant type\n\n**** Availability Definition: The availability of a line is to be calculated by the number of hours the line reported Continuously Monitored emission levels to the Regulator through the calendar year divided by the total number of hours in that year. \n\nThe overall plant availability is calculated as the mean of all lines in the plant. For clarity this includes periods of abnormal operation.  \n\nRationale: The primary function of an Energy from Waste facility is the disposal of waste. It follows therefore that the availability of a plant is determined by the period of time a facility spends undertaking this activity.\n\n*****NCV of waste: This should be completed for all plants which have a boiler. Calculate using total thermal power produced by boiler/boiler efficiency, or other suitable calculation. \n"]
["Nominal electrical export capacity*:",34.5,"MWe"]
["Nominal heat export capacity**:","N/A","MWth"]
["No. of combustion lines:",3,"No. of steam turbines:",null,1]
[]
["Waste types received","Unit","Q1","Q2","Q3","Q4","Year Total","%"]
["Household / Local Authority","tonnes",76094.38,78146.880000000005,81068.87999999999,80853.459999999977,{"$f":"SUM(C11:F11)","v":316163.59999999998},{"$f":"IF(G11>0,G11/$G$21,\"-\")","v":0.63715155868599616}]
["Commercial & Industrial ",null,32897.640000000007,38641.520000000004,23619.8,35464.639999999999,{"$f":"SUM(C12:F12)","v":130623.6},0.26324039307869757]
["Hazardous ",null,"N/A","N/A","N/A","N/A",0,"-"]
["Clinical",null,"N/A","N/A","N/A","N/A",0,"-"]
["Waste wood (biomass) ",null,"N/A","N/A","N/A","N/A",0,"-"]
["Refuse Derived Fuel (incl. SRF) - H'hold/LA",null,"N/A","N/A","N/A","N/A",{"$f":"SUM(C16:F16)","v":0},"-"]
["Refuse Derived Fuel (incl. SRF) - C&I",null,2021.6399999999992,10767.32,3704.96,6165.94,22659.859999999997,4.566548811629946E-2]
["Food waste",null,907.83999999999992,1167.78,1195.4000000000001,1228.8200000000002,4499.84,9.0683433192106661E-3]
["Recyclates waste",null,5193.6000000000004,4948.7,4853.3200000000006,4913.0200000000004,19908.64,4.0121067090956614E-2]
["Card/Paper",null,642.98,473.46,541.31999999999994,700.82,2358.58,4.7531497088394012E-3]
["Total waste received",null,{"$f":"SUM(C11:C20)","v":117758.08000000002},{"$f":"SUM(D11:D20)","v":134145.66},{"$f":"SUM(E11:E20)","v":114983.68000000001},{"$f":"SUM(F11:F20)","v":129326.7},496214.12000000005]
["Rejected Waste ",null,117.06,94.9,null,5.86,{"$f":"SUM(C22:F22)","v":217.82000000000002},{"$f":"IF(G22>0,G22/$G$21,\"-\")","v":4.3896372799709929E-4}]
["Unprocessed waste transferred out",null,null,null,null,null,{"$f":"SUM(C23:F23)","v":0},{"$f":"IF(G23>0,G23/$G$21,\"-\")","v":"-"}]
["Total waste combusted ***",null,110503,110734,100540,112921,{"$f":"SUM(C24:F24)","v":434698}]
[]
["Energy Usage / Export","Unit","Q1","Q2","Q3","Q4","Year Total","KWh/te",null,"Password for protected cells\nA password has been set to prevent accidental  editing of cells with formulae. \nIf you still need to make an edit for some reason then the password = 1234"]
["Power generated at generator terminals","MWh",64025.24,62574.42,53113.77,63724.56,{"$f":"SUM(C27:F27)","v":243437.99},{"$f":"IF(G27>0,G27*1000/$G$24,\"-\")","v":560.01635618291323}]
["Power exported to grid and other external user(s)",null,49818,49117,40579,49701,{"$f":"SUM(C28:F28)","v":189215},{"$f":"IF(G28>0,G28*1000/$G$24,\"-\")","v":435.27920533335788}]
["Power imported",null,419,1703,2610,1087,5819,{"$f":"IF(G29>0,G29*1000/$G$24,\"-\")","v":13.386304974948125}]
["Indicative parasitic load","%",{"$f":"IF(C27>0,(C27-C28)/C27,\"-\")","v":0.22190061294576949},{"$f":"IF(D27>0,(D27-D28)/D27,\"-\")","v":0.21506264061256977},0.23599849907095652,0.22006523073678341,{"$f":"IF(G27>0,1-G28/(G27+G29),\"-\")","v":0.24088387651636167}]
["Thermal Energy Exported **",null,"N/A","N/A","N/A","N/A",{"$f":"SUM(C31:F31)","v":0},{"$f":"IF(G31>0,G31*1000/$G$24,\"-\")","v":"-"}]
["R1 value (if applicable)","R1","-","-","-","-",0.63]
[]
["Waste Disposal & Recovery","Unit","Q1","Q2","Q3","Q4","Year Total","% inputs"]
["APC Residues - produced","tonnes",12278.3,12780.26,11624.18,11485.54,{"$f":"SUM(C35:F35)","v":48168.28},{"$f":"IF(G35>0,G35/$G$24,\"-\")","v":0.11080860735499128}]
["IBA - produced",null,11238.84,10290.74,10269.719999999999,10377.4,42176.700000000004,{"$f":"IF(G36>0,G36/$G$24,\"-\")","v":9.7025291121652285E-2}]
["Metals recycling",null,3202.14,3342.28,2938.62,3330.18,{"$f":"SUM(C37:F37)","v":12813.220000000001},2.9476142057244342E-2]
["Other",null,0,0,0,0,{"$f":"SUM(C38:F38)","v":0},"-"]
["Other",null,0,0,0,0,0,"-"]
["Other",null,0,0,0,0,0,"-"]
[]
["Raw Material Usage","Unit","Q1","Q2","Q3","Q4","Year Total","Qty./te"]
["Mains Water","ltrs",34444.258064516129,37207.331479421577,36606.722580645161,40427.1,{"$f":"SUM(C43:F43)","v":148685.41212458286},{"$f":"IF(G43>0,G43/$G$24,\"-\")","v":0.34204300945618077}]
["Lime / hydrated lime","kgs",872829.99999999988,1066950.0000000002,1302390,1216750,4458920,{"$f":"IF(G44>0,G44/$G$24,\"-\")","v":10.257512111856967}]
["Urea","kgs",0,0,0,0,0,"-"]
["Activated carbon","kgs",66740.000000000015,70310,65590,69710.000000000015,{"$f":"SUM(C46:F46)","v":272350},0.62652692213904826]
["Caustic Soda","kgs",53280,48500,939.99999999999773,34320,137040,0.31525334830157947]
["Hydrochloric Acid","kgs",54400.000000000007,47519.999999999993,6320,34060,142300,0.32735370303060973]
["Sand","kgs",1456690,1454220,1682409.9999999998,842599.99999999988,5435920,12.505049482629319]
["Ammonia","kgs",0,0,22880,0,22880,5.2634242623614554E-2]
["Fuel oil","ltrs",437950,648810,1078080,577780,2742620,6.309253780785741]
["Salt","kgs",2000,4000,40540,17920,64460,0.14828685662229871]
[]
["Summary ","Line/Unit","Q1","Q2","Q3","Q4","Year Total",null,"Hrs in year "]
["Availability of waste combustion by line, hrs ****",1,2051.42,1925.25,1917.18,1579.14,{"$f":"SUM(C55:F55)","v":7472.9900000000007},{"$f":"+G55/$I$55","v":0.8530810502283106},8760,"Change this figure to 8784 in a leap year"]
[null,2,1762.81,1829.69,1639.8,1854.05,7086.35,{"$f":"+G56/$I$55","v":0.80894406392694063}]
[null,3,1473.37,1764.86,1849.47,2198.83,7286.53,0.83179566210045663]
[null,4,"N/A","N/A","N/A","N/A",0,0]
[null,5,"N/A","N/A","N/A","N/A",{"$f":"SUM(C59:F59)","v":0},0]
["Hours of turbine operations, hrs",1,2040,1780,1780,2044,7644,0.87260273972602742]
["Hours of turbine operations, hrs",2,"N/A","N/A","N/A","N/A",0,0]
["Hours of heat / steam export**","hours","N/A","N/A","N/A","N/A",0,{"$f":"IF(B62>0,G61/I55,\"n/a\")","v":0}]
["Net calorific value of waste*****","MJ/kg",10.7,10.72,11.11,10.72]
["Abnormal operation events","qty.",0,0,3,0,3,{"$f":"IF(G64>0,\"yes\",\"no\")","v":"yes"}]
["Abnormal operation duration","hours",0,0,3.5,0,3.5,{"$f":"+(G65)/I55","v":3.9954337899543381E-4}]
["Permit Breaches","qty.",0,0,2,1,3,{"$f":"IF(G66>0,\"yes\",\"no\")","v":"yes"}]

{"sheet":"Operational Summary","index":3,"n_rows":56,"n_cols":11,"rows_kept":56,"cut":false,"hidden":false,"merged":[[29,10,42,13],[4,0,26,8],[4,10,13,13],[28,1,28,8],[29,2,29,8],[30,2,30,8],[31,2,31,8],[32,2,32,8],[33,2,33,8],[34,2,34,8],[35,2,35,8],[36,2,36,8],[37,2,37,8],[38,2,38,8],[44,2,44,8],[39,2,39,8],[40,2,40,8],[41,2,41,8],[42,2,42,8],[43,2,43,8],[55,2,55,8],[54,2,54,8],[53,2,53,8],[52,2,52,8],[51,2,51,8],[45,2,45,8],[50,2,50,8],[49,2,49,8],[48,2,48,8],[47,2,47,8],[46,2,46,8]]}
[{"$f":"+'Cover Page'!$B$29","v":"Annual Performance Report 2025"},null,null,null,{"$f":"+'Cover Page'!$B$33","v":"Kent Enviropower Limited"}]
[]
["Summary of Plant Operations and Maintenance during the reporting year",null,null,null,null,null,null,null,null,null,"Notes:"]
[]
["Line 3 had an extended plant maintenance outage in March/April 2025, which included the following highlights:\n\n- Furnace refractory inspection and repair/replacement, with particular focus on reprofiling the top of the             furnace to reduce residue build up in the furnace / boiler\n- Boiler cleaning and inspection using non-destructive testing\n- Bicarbonate of soda cleaning of Electrostatic Precipitators to improve efficiency\n- Inspection and overhaul of 120+ valves to improve efficiency\n- Inspection and replacement of residue ash hopper walls where thin to protect against potential fugitive dust emissions\n- Inspection of common air ducts in the Baghouse Filters to protect against potential fugitive dust emissions\n- Inspection and cleaning of electrical system components\n- Overhaul of key equipment used in the combustion process including fans and distribution nozzles\n- Replacement of sections of worn casing on the Circoclean reactor, part of the abatement system\n- Removal and blanking of the bypass damper to ensure more effective emission control.\n\nIn parallel with Line 3 outage, the entire combustion process across all 3 lines was shut down for a 10 day window to allow for common plant inspections and overhauls. This included:\n- Inspection and test of pressure systems to ensure continued compliance\n- Maintenance of high voltage and low voltage electrical equipment\n- Connection of an upgraded water treatment plant using reverse osmosis technology to significantly reduce the use of chemicals (still in commissioning)\n- Maintenance of almost 300 valves to improve reliability and efficiency\n- Overhaul of site air compressors to ensure efficient operation as well as connection of a new air compressor using a variable speed drive to improve efficiency\n- Overhaul and inspection of the steam turbine and generator\n- Installation of a new control system on the steam turbine and generator to improve reliability and reduce the need for importing power form the grid\n",null,null,null,null,null,null,null,null,null,"Include summary of key operational and/or maintenance activity undertaken in the year, such as any major component upgrades and/or replacements "]
[]
[]
[]
[]
[]
[]
[]
[]
[]
[]
[]
[]
[]
[]
[]
[]
[]
[]
[]
[]
[]
[]
[]
[{"$f":"+'Cover Page'!C39","v":2025},"Plant shut-downs"]
["Start date","End date","Reason for shut-down",null,null,null,null,null,null,null,"Provide a very brief reason for plant shut-down e.g. \"Shut-down prior to major outage\"; \"Emergency shut-down due to boiler tube leak\". All emergency shut-downs must be listed (irrespective of whether or not they were required to be reported to the EA). \n\nThere is no need to include periods of hot-standby here (e.g. to clear feed chute hopper blockages).\n\nFor clinical waste incinerators which require regular shut-downs for boiler cleaning, there is no need to record these here (only those prior to major outages, and emergency shut-downs). "]
["2025-01-01","2025-01-08","Line 2 -Bed fluidisation"]
["2025-01-12","2025-01-18","Line 3- Bed fluidisation"]
["2025-02-01","2025-02-06","Line 2 - Bed fluidisation"]
["2025-02-08","2025-02-10","Line 3 - Waste feeders maintenance"]
["2025-02-14","2025-02-15","Line 3 - Lime system maintenance"]
["2025-03-14","2025-04-14","Line 3 - Planned outage"]
["2025-03-29","2025-04-08","Line 2 - Planned outage"]
["2025-03-30","2025-04-14","Line 1 - Planned outage"]
["2025-05-31","2025-06-05","Line 2 - Bed fluidisation"]
["2025-06-27","2025-06-28","Line 3 - ID Fan maintenance"]
["2025-07-23","2025-07-29","Line 2 - Bed fluidisation"]
["2025-07-25","2025-07-29","Line 1 - Turbine bypass maintenance"]
["2025-08-08","2025-08-09","Line 1 -  Plant trip"]
["2025-08-08","2025-08-09","Line 2 - Plant trip"]
["2025-08-08","2025-08-09","Line 3 - Plant trip"]
["2025-08-27","2025-09-02","Line 3 - Bed fluidisation"]
["2025-09-01","2025-09-06","Line 2 - Bed fluidisation"]
["2025-09-06","2025-09-10","Line 1 - PA Plenums maintenance "]
["2025-09-12","2025-09-13","Line 2 - Diostributor maintenance"]
["2025-09-14","2025-09-21","Line 2 - Planned mini outage"]
["2025-09-17","2025-09-19","Line 3 - HV fault"]
["2025-09-25","2025-09-28","Line 3 - Turbine Bypass Maintenance"]
["2025-10-04","2025-10-18","Line 1 - Planned mini outage"]
["2025-11-04","2025-11-14","Line 1 - Bed fluidisation"]
["2025-11-18","2025-11-22","Line 2 - Boiler drum maintenance"]
["2025-12-06","2025-12-13","Line 2 - Bed fluidisation"]

{"sheet":"Perf. Form 1","index":4,"n_rows":59,"n_cols":10,"rows_kept":59,"cut":false,"hidden":false,"merged":[[37,0,37,3],[37,4,37,5],[37,7,37,8],[34,4,34,5],[42,0,42,3],[42,4,42,5],[42,7,42,8],[38,0,38,3],[38,4,38,5],[38,7,38,8],[39,0,39,3],[39,4,39,5],[39,7,39,8],[41,7,41,8],[41,0,41,3],[41,4,41,5],[40,0,40,3],[40,4,40,5],[40,7,40,8],[52,0,52,1],[54,0,54,9],[55,0,56,9],[43,0,43,9],[44,0,45,9],[48,0,48,1],[48,2,48,9],[50,0,50,1],[51,0,51,1],[23,0,23,3],[23,4,23,5],[23,6,23,7],[23,8,23,9],[25,0,25,9],[26,0,28,9],[36,7,36,8],[35,7,35,8],[34,7,34,8],[33,7,33,8],[36,0,36,3],[35,0,35,3],[34,0,34,3],[33,0,33,3],[36,4,36,5],[35,4,35,5],[31,0,31,3],[31,7,31,8],[32,0,32,3],[32,4,32,5],[32,7,32,8],[33,4,33,5],[21,0,21,1],[21,2,21,3],[21,4,21,5],[21,6,21,7],[21,8,21,9],[22,0,22,3],[22,4,22,5],[22,6,22,7],[22,8,22,9],[19,0,19,1],[19,2,19,3],[19,4,19,5],[19,6,19,7],[19,8,19,9],[20,0,20,1],[20,2,20,3],[20,4,20,5],[20,6,20,7],[20,8,20,9],[17,0,17,1],[17,2,17,3],[17,4,17,5],[17,6,17,7],[17,8,17,9],[18,0,18,1],[18,2,18,3],[18,4,18,5],[18,6,18,7],[18,8,18,9],[15,0,15,1],[15,2,15,3],[15,4,15,5],[15,6,15,7],[15,8,15,9],[16,0,16,9],[13,0,13,1],[13,2,13,3],[13,4,13,5],[13,6,13,7],[13,8,13,9],[14,0,14,3],[14,4,14,5],[14,6,14,7],[14,8,14,9],[11,0,11,1],[11,2,11,3],[11,4,11,5],[11,6,11,7],[11,8,11,9],[12,0,12,1],[12,2,12,3],[12,4,12,5],[12,6,12,7],[12,8,12,9],[9,0,9,9],[10,0,10,1],[10,2,10,3],[10,4,10,5],[10,6,10,7],[10,8,10,9],[2,0,2,4],[2,6,2,8],[3,1,3,4],[5,3,5,4],[5,6,5,7],[8,0,8,1],[8,2,8,3],[8,4,8,5],[8,6,8,7],[8,8,8,9]]}
[{"$f":"+'Cover Page'!C39","v":2025}," Annual Reporting Performance Form 1"]
[]
[{"$f":"+'Cover Page'!B31","v":"Permit EPR/BR4551IC"},null,null,null,null,"Operator: ",{"$f":"+'Cover Page'!B37","v":"Kent Enviropower Limited"}]
["Facility:",{"$f":"+'Cover Page'!B33:I33","v":"Kent Enviropower Limited"},null,null,null,"Form:","Performance 1"]
[]
["Reporting  Period from: ",null,null,"2025-01-01",null,"to:","2025-12-31"]
[]
[{"$f":"+A1","v":2025},"Annual Reporting of Waste Disposal and Recovery"]
["Waste Description",null,"Disposal Route(s)",null,"Disposal Tonnes",null,"Recovery Tonnes",null,"% / tonne of waste incinerated"]
["1) Hazardous Wastes"]
["APC Residues (including FGT, Boiler and ESP ash)",null,"Landfill",null,10413.799999999999,null,null,null,{"$f":"IF((E11+G11)>0,(E11+G11)/'Operational Data'!$G$24, \"-\")","v":2.3956401915812817E-2}]
["APC Residues (including FGT, Boiler and ESP ash)",null,"Recycling",null,null,null,37754.480000000003,null,{"$f":"IF((E12+G12)>0,(E12+G12)/'Operational Data'!$G$24, \"-\")","v":8.6852205439178473E-2}]
[null,null,null,null,null,null,null,null,{"$f":"IF((E13+G13)>0,(E13+G13)/'Operational Data'!$G$24, \"-\")","v":"-"}]
[null,null,null,null,null,null,null,null,{"$f":"IF((E14+G14)>0,(E14+G14)/'Operational Data'!$G$24, \"-\")","v":"-"}]
["Total Hazardous Waste",null,null,null,{"$f":"SUM(E11:F14)","v":10413.799999999999},null,{"$f":"SUM(G11:H14)","v":37754.480000000003},null,{"$f":"IF((E15+G15)>0,(E15+G15)/'Operational Data'!$G$24, \"-\")","v":0.11080860735499128}]
[]
["2) Non-Hazardous Wastes"]
["IBA",null,"Recycling",null,null,null,42176.7,null,{"$f":"IF((E18+G18)>0,(E18+G18)/'Operational Data'!$G$24, \"-\")","v":9.7025291121652271E-2}]
["Ferrous Metal",null,"Recycling",null,null,null,12831.16,null,{"$f":"IF((E19+G19)>0,(E19+G19)/'Operational Data'!$G$24, \"-\")","v":2.9517412088392401E-2}]
["Process Water",null,"N/A",null,null,null,null,null,{"$f":"IF((E20+G20)>0,(E20+G20)/'Operational Data'!$G$24, \"-\")","v":"-"}]
[null,null,null,null,null,null,null,null,{"$f":"IF((E21+G21)>0,(E21+G21)/'Operational Data'!$G$24, \"-\")","v":"-"}]
[null,null,null,null,null,null,null,null,{"$f":"IF((E22+G22)>0,(E22+G22)/'Operational Data'!$G$24, \"-\")","v":"-"}]
["Total Non-Hazardous Waste",null,null,null,{"$f":"SUM(E18:F22)","v":0},null,{"$f":"SUM(G18:H22)","v":55007.86},null,{"$f":"IF((E23+G23)>0,(E23+G23)/'Operational Data'!$G$24, \"-\")","v":0.12654270321004468}]
["TOTAL WASTE",null,null,null,{"$f":"+E23+E15","v":10413.799999999999},null,{"$f":"+G23+G15","v":92762.34},null,{"$f":"IF((E24+G24)>0,(E24+G24)/'Operational Data'!$G$24, \"-\")","v":0.23735131056503594}]
[]
["Operator’s comments :"]
["APCr continues to shift significantly from landfill to recycling and this trend is set to continue into 2026"]
[]
[]
[]
[{"$f":"+A1","v":2025},"Annual Reporting of Water and Other Raw Material Usage"]
["Raw Material",null,null,null,"Usage",null,"Unit","Specific Usage",null,"Unit"]
["Mains Water",null,null,null,{"$f":"+'Operational Data'!G43/1000","v":148.68541212458285},null,"m3",{"$f":"IF(E33>0,E33/'Operational Data'!$G$24,\"-\")","v":3.4204300945618073E-4},null,"m3/te"]
["Lime / hydrated lime",null,null,null,{"$f":"+'Operational Data'!G44","v":4458920},null,"kg",{"$f":"IF(E34>0,E34/'Operational Data'!$G$24,\"-\")","v":10.257512111856967},null,"kg/te"]
["Urea",null,null,null,{"$f":"+'Operational Data'!G45","v":0},null,"kg",{"$f":"IF(E35>0,E35/'Operational Data'!$G$24,\"-\")","v":"-"},null,"kg/te"]
["Activated carbon",null,null,null,{"$f":"+'Operational Data'!G46","v":272350},null,"kg",{"$f":"IF(E36>0,E36/'Operational Data'!$G$24,\"-\")","v":0.62652692213904826},null,"kg/te"]
["Caustic Soda",null,null,null,{"$f":"+'Operational Data'!G47","v":137040},null,"kg",{"$f":"IF(E37>0,E37/'Operational Data'!$G$24,\"-\")","v":0.31525334830157947},null,"kg/te"]
["Hydrochloric Acid",null,null,null,{"$f":"+'Operational Data'!G48","v":142300},null,"kg",{"$f":"IF(E38>0,E38/'Operational Data'!$G$24,\"-\")","v":0.32735370303060973},null,"kg/te"]
["Sand",null,null,null,{"$f":"+'Operational Data'!G49","v":5435920},null,"kg",{"$f":"IF(E39>0,E39/'Operational Data'!$G$24,\"-\")","v":12.505049482629319},null,"kg/te"]
["Ammonia",null,null,null,{"$f":"+'Operational Data'!G50","v":22880},null,"kg",{"$f":"IF(E40>0,E40/'Operational Data'!$G$24,\"-\")","v":5.2634242623614554E-2},null,"kg/te"]
["Fuel oil",null,null,null,{"$f":"+'Operational Data'!G51","v":2742620},null,"ltr",{"$f":"IF(E41>0,E41/'Operational Data'!$G$24,\"-\")","v":6.309253780785741},null,"ltr/te"]
["Salt",null,null,null,{"$f":"+'Operational Data'!G52","v":64460},null,"kg",{"$f":"IF(E42>0,E42/'Operational Data'!$G$24,\"-\")","v":0.14828685662229871},null,"kg/te"]
[]
["Operator’s comments :"]
["No comments for this section."]
[]
[]
[{"$f":"+A31","v":2025},"Annual Reporting of other performance indicators "]
["Parameter",null,"Results by Line"]
[null,null,"A1","A2","A3","A4","A5",null,"Turbine 1","Turbine 2"]
["Operating hours for the year, hours",null,7472.9900000000007,7086.35,7286.53,null,null,null,7644]
["Number of periods of abnormal operation, qty.",null,2,null,1]
["Cumulative hours of abnormal operation for this year, hours",null,2.5,null,1]
[]
["Operator’s comments :"]
["No comments"]
[]
[]
["Signed: ",null,null,null,null,null,"Date:","26th January 2026"]

{"sheet":"Energy Form 1","index":5,"n_rows":29,"n_cols":8,"rows_kept":29,"cut":false,"hidden":false,"merged":[[15,0,15,2],[15,3,15,4],[15,6,15,8],[17,0,17,8],[18,0,24,8],[13,0,13,2],[13,3,13,4],[13,6,13,8],[14,0,14,2],[14,3,14,4],[14,6,14,8],[11,0,11,2],[11,3,11,4],[11,6,11,8],[12,0,12,2],[12,3,12,4],[12,6,12,8],[9,0,9,2],[9,3,9,4],[9,6,9,8],[10,0,10,2],[10,3,10,4],[10,6,10,8],[2,6,2,8],[4,1,4,4],[6,3,6,4],[6,6,6,7],[8,0,8,2],[8,3,8,4],[8,6,8,8]]}
[{"$f":"+'Cover Page'!C39","v":2025}," Annual Reporting of Energy Usage/Export"]
[]
[{"$f":"+'Cover Page'!B31","v":"Permit EPR/BR4551IC"},null,null,null,null,"Operator: ",{"$f":"+'Cover Page'!B37","v":"Kent Enviropower Limited"}]
[]
["Facility:",{"$f":"+'Cover Page'!B33:I33","v":"Kent Enviropower Limited"},null,null,null,"Form:","Energy 1"]
[]
["Reporting  Period from: ",null,null,{"$f":"+'Perf. Form 1'!D6:E6","v":"2025-01-01"},null,"to:",{"$f":"+'Perf. Form 1'!G6:H6","v":"2025-12-31"}]
[]
["Energy Source",null,null,"Energy Usage",null,"Unit","Specific Usage (KWh/tonne incinerated"]
["Electricity Produced",null,null,{"$f":"+'Operational Data'!G27","v":243437.99},null,"MWh",{"$f":"+'Operational Data'!H27","v":560.01635618291323}]
["Electricity Imported   ",null,null,{"$f":"+'Operational Data'!G29","v":5819},null,"MWh",{"$f":"+'Operational Data'!H29","v":13.386304974948125}]
["Electricity Exported",null,null,{"$f":"+'Operational Data'!G28","v":189215},null,"MWh",{"$f":"+'Operational Data'!H28","v":435.27920533335788}]
["Gas Oil",null,null,2331.2269999999999,null,"tonnes",62.37]
["Steam/hot water exported",null,null,{"$f":"+'Operational Data'!G31","v":0},null,"GWh",{"$f":"+'Operational Data'!H31","v":"-"}]
[]
[]
[]
["Operator’s comments :"]
["A similar year to 2024  with the exception of imported electricity due to the planned replacement of the turbine control system."]
[]
[]
[]
[]
[]
[]
[]
[]
[]
["Signed: ",null,null,null,null,null,"Date:","26th January 2026"]

{"sheet":"Permit Compliance","index":6,"n_rows":48,"n_cols":12,"rows_kept":48,"cut":false,"hidden":false,"merged":[[24,3,24,5],[26,3,26,5],[21,1,21,2],[25,1,25,2],[25,3,25,5],[8,11,20,11],[29,0,29,10],[18,0,18,10],[22,1,22,2],[23,1,23,2],[14,0,14,1],[14,2,14,4],[24,1,24,2],[26,1,26,2],[27,0,27,8],[19,7,19,8],[19,1,19,2],[19,3,19,5],[21,3,21,5],[22,3,22,5],[23,3,23,5],[14,5,14,8],[15,0,15,1],[16,2,16,4],[16,5,16,8],[15,2,15,4],[15,5,15,8],[16,0,16,1],[7,0,7,1],[7,2,7,8],[8,0,8,1],[8,2,8,4],[8,5,8,8],[48,4,48,8],[9,0,9,1],[9,2,9,4],[9,5,9,8],[10,0,10,1],[10,2,10,4],[10,5,10,8],[11,0,11,1],[11,2,11,4],[11,5,11,8],[12,0,12,1],[12,2,12,4],[12,5,12,8],[13,0,13,1],[13,2,13,4],[13,5,13,8],[30,1,30,2],[30,6,30,9],[30,3,30,5],[38,1,38,2],[37,1,37,2],[36,1,36,2],[35,1,35,2],[34,1,34,2],[33,1,33,2],[32,1,32,2],[31,1,31,2],[34,3,34,5],[33,3,33,5],[32,3,32,5],[31,3,31,5],[31,6,36,9],[45,1,45,2],[46,1,46,2],[47,1,47,2],[43,1,43,2],[42,1,42,2],[41,1,41,2],[39,1,39,2],[44,1,44,2],[36,3,36,5],[35,3,35,5],[40,3,40,5],[41,3,41,5],[42,3,42,5],[43,3,43,5],[44,3,44,5],[40,1,40,2],[37,6,37,9],[38,6,38,9],[39,6,39,9],[39,3,39,5],[47,3,47,5],[46,3,46,5],[45,3,45,5],[47,6,47,9],[46,6,46,9],[45,6,45,9],[40,6,40,9],[41,6,41,9],[42,6,42,9],[43,6,43,9],[44,6,44,9]]}
[{"$f":"+'Cover Page'!$B$29","v":"Annual Performance Report 2025"},null,null,null,{"$f":"+'Cover Page'!$B$33","v":"Kent Enviropower Limited"}]
[]
["Summary of Permit Compliance"]
[]
["Compliance with permit limits for continuously monitored pollutants"]
[]
["The plant met its emission limits as shown in the table below:"]
["Substance",null,"Percentage time compliant during operationNote 1",null,null,null,null,null,null,null,null,"Notes:"]
[null,null,"Half-hourly limit",null,null,"Daily limit",null,null,null,null,null,"Note 1: Please report to 2 decimal places, i.e. xx.xx%\n\nNote 2: Please enter into this table any permit non-compliances that the EA has given a CCS score for. Please also enter any other non-compliances which you have notified to the EA (e.g. ELV exceedances) but which have not yet been assessed by the EA. There is no need to enter any notifications which were subsequently assessed by the EA not to be permit breaches.  \n\nNote 3: Please enter information here (rather than just referencing the notifications that were sent to the EA) including where relevant the incineration line reference, pollutant and value of the measured result for any ELV exceedances.   \n\n"]
["Particulates",null,1,null,null,1]
["Oxides of nitrogen",null,1,null,null,1]
["Sulphur dioxide",null,0.99990000000000001,null,null,1]
["Carbon monoxide",null,1,null,null,0.99890000000000001]
["Total organic carbon",null,1,null,null,1]
["Hydrogen chloride",null,1,null,null,1]
["Hydrogen fluoride",null,1,null,null,1]
["Ammonia",null,1,null,null,1]
[]
["Summary of non-compliances under the permit Note 2"]
["Date","Summary of non-compliance Note 3",null,"Reason ",null,null,"Measures taken to prevent reoccurrence","CCS score if applicable*"]
[null,null,null,null,null,null,null,"Impact","Root cause"]
["2025-07-24","Abnormal Operation number 029 - Disturbance of the lime abatement system leading to increased HCL",null,"A sensor had been disturbed creating an issue with the HCL abatement Lime system.",null,null,"Investigation started immediately, disturbed sensor identified and repaired",null,"See the \"Reason\" column"]
["2025-08-24","Schedule 5 number 106 - CO daily exceedance of 59.00 mg/m3 against a permit limit of 50 mg/m3 on line 1",null,"Blockage of the PA nozzles. Low PA flow led to all the following chained events:\n\n•\tPoor fluidisation (unstable bed -> bad combustion)\n•\tWaste build up.\n•\tPoor oxidation of CO (low freeboard temperatures and low O2 when the burners are on)",null,null,"Lower the waste feed cap if blockage or buildup detected.\nInspect plenums regularly to ensure PA flow is not obstructed\nExpect and prepare for extra COs after shutting off waste feed",null,"See the \"Reason\" column"]
["2025-08-26","Schedule 5 number 107 - Elevated half hour SO2 on line 3. Limit 40 mg/m3 and 482.6 mg/m3 recorded",null,"Large clump of undesired waste onto the de fluidised bed",null,null,"Implementation of furnace camera to see the entire bed to identify bed disturbances.\nMore effective use of bed improvement procedure. ALT-G23-WI-1300\nClear significant blockages when they occur ALT-G23-WI-1287",null,"See the \"Reason\" column"]
["2025-09-17","Schedule 5 number 108 - Emergency Shutdown - Loss of combustion air",null,"Cancelled, has been replaced with Abnormal Operation number 030",null,null,"NA"]
["2025-09-17","Abnormal Operation number 030 - data loss due to Earth fault on turbine and PA fan",null,"A turbine earth fault caused a primary air fan failure, leading to lines 1 and 3 coming off waste, loss of the DCS system, and invalid CEMS data for two half-hour periods due to insufficient monitoring data.",null,null,"Investigation ongoing",null,"See the \"Reason\" column"]
["2025-11-04","Schedule 5 number 109 - Line 3 Dioxins & Furans Testing ",null,"Under investigation : Limit-0.06ng/m3, reading -0.062ng/m3, uncertainty 0.013 ng/m3",null,null,"Investigation ongoing",null,"See the \"Reason\" column"]
["*If the Environment Agency (EA) has given a Compliance Classification Scheme (CCS) score due to a permit non-compliance it should be entered here (CCS4 = No impact; CCS3 = Minor impact; CCS2 = Significant impact; CCS1 = Major impact). If the EA has not yet assessed a non-compliance which you have notified to them, these columns should be left blank. Enter N/A if no score was given for the root cause.  "]
[]
["Summary of any complaints received and actions to taken to resolve them."]
["Date","Summary of complaint [including Line/Reference]",null,"Reason (including whether substantiated by the operator or the EA)",null,null,"Measures taken to prevent reoccurrence"]
["2025-04-29","Pests (Flies)",null,"NS",null,null,"Site carries out weekly counting on flies in several areas of the site. None of the areas show an increase flies population, therefore there are not clear proofs that flies are originated from site. The weather was warmer than normal. "]
["2025-04-29","Pests (Flies)",null,"NS"]
["2025-04-29","Pests (Flies)",null,"NS"]
["2025-04-29","Pests (Flies)",null,"NS"]
["2025-05-02","Pests (Flies)",null,"NS"]
["2025-05-06","Pests (Flies)",null,"NS"]
["2025-06-16","Odour",null,"S based on wind direction",null,null,"Daily check was completed straight after the complaint was raised. \nThe odour levels albeit subjective, were in acceptable levels.\nThe MSW bunker was empty after the weekend and the site was open for deliveries.\nThe wind direction was towards our neighbours plus the waste lorries were constantly using St Laurance Ave & Laverstock road."]
["2025-07-28","Odour",null,"S based on wind direction",null,null,"Odour checks carried out 06:00 and 16:00 on 28/07/2025\nWeather conditions - Dry /Dry\nTemperature - Warm / 22c\nwind strength - light / 4mph\nwind direction - NNW / WNW\n@ 06:00 faint odour present on south side of plant in zones 4,5,6\n@16:00 no detectable odours\nAll doors and louvres are shut.\nOnly deodorizer No 2 is operating correctly. Maintenance requested to fix all the other 2"]
["2025-07-24","Odour",null,"S based on wind direction",null,null,"All doors and louvres are shut. in the MSW and DF area. no odours found while walking around at night."]
["2025-07-24","Noise",null,"S ",null,null,"Boiler house was full of smoke and setting off alarms across a large area of the site and the fire system was not working correctly.\nThe decision to leave the fire alarm on and get confidence in it before we silenced the site evacuation alarm. Argus fire Engineer was already on site so was called from the muster point to assist the Op's team"]
["2025-07-10","Odour",null,"S based on wind direction",null,null,"Odour checks carried out @05:00 and 10:00, no detectable odours"]
["2025-07-03","Odour",null,"S based on wind direction",null,null,"After the complaint was made our routine site odour check was executed straight away.\nOur site odour was within our acceptable limits. All roof louvres were checked for 'confirmed closed  & all boiler house doors were also checked for being shut.\nThe wind was from the NE which would included a potential odour from the local recycling site."]
["2025-08-15","Odour",null,"S based on wind direction",null,null,"Other than only one deodoriser I/S (of which a second unit was being repaired at that time as a priority#1 breakdown) , all doors & louvres ware confirmed closed.\nA routine odour monitoring report form was also completed.\nAll control measures & monitoring were satisfied.\nThe claimants property was in the direction of the wind, but the breeze was very light.\nThe intensity & sensitivity of risk was within acceptable levels."]
["2025-08-20","Odour",null,"S based on wind direction",null,null,"Odour checks were completed at 23:00 on 21/08/2025. It was reported that there was no detectable odour in all areas. However, on the roller shutter door check sheet the TLS roller door is recorded as open. this was due to the maintenance work being carried out and it was not possible for OPS to close the door. This may have contributed to a possible odour. but as recorded by 23:00 there was not odour on site."]
["2025-12-17","Smoke pollution ",null,"NS",null,null,"Data sent to EA to demonstrate compliance, no issues with the emissions"]
["2025-12-19","Smoke pollution ",null,"NS",null,null,"This has already been raised by the EA and data sent to them to demonstrate compliance."]
["2025-12-27","Smoke pollution ",null,"NS",null,null,"Action raised to contact complainant and invite to site"]

{"sheet":"Improvements","index":7,"n_rows":39,"n_cols":5,"rows_kept":39,"cut":false,"hidden":false,"merged":[[37,0,37,8],[38,0,47,8],[4,0,4,8],[5,0,13,8],[15,0,15,8],[16,0,24,8],[26,0,26,8],[27,0,35,8]]}
[{"$f":"+'Cover Page'!$B$29","v":"Annual Performance Report 2025"},null,null,null,{"$f":"+'Cover Page'!$B$33","v":"Kent Enviropower Limited"}]
[]
["Summary of Plant Improvements"]
[]
["Summary of any efficiency improvements that have been completed within the year."]
["In March–April 2025, Line 3 underwent an extended maintenance outage that included major inspections, cleaning, repairs, and equipment upgrades to improve operational reliability, efficiency, and environmental control. Key work focused on the furnace, boiler, emission‑control systems, valves, electrical components, and critical combustion equipment.\nAlongside the Line 3 outage, all three lines were taken offline for a coordinated 10‑day shutdown to complete common plant activities. These included statutory pressure‑system testing, electrical maintenance, connection of an upgraded reverse‑osmosis water treatment plant, extensive valve maintenance, air‑compressor overhauls and complete additional air compressor, and major work on the steam turbine and generator, including installation of a new control system.\nTogether, these improvements strengthen plant performance, enhance emission control, reduce chemical and energy use, and support long‑term reliability."]
[]
[]
[]
[]
[]
[]
[]
[]
[]
["Summary of any permit improvement conditions that have been completed within the year and the resulting environmental benefits."]
["C14 analysers are currently being installed and commissioned for the measurement of CO2 and the forthcoming involvement of the emission trading scheme."]
[]
[]
[]
[]
[]
[]
[]
[]
[]
["Summary of any changes to the plant or operating techniques which required a variation to the permit and a summary of the resulting environmental impact."]
["No permit changes to plant or operating techniques that require a permit variation."]
[]
[]
[]
[]
[]
[]
[]
[]
[]
["Summary of any other improvements made to the plant or planned to be made and a summary of the resulting environmental benefits."]
["Recent improvements include the installation of dust monitoring analysers on each baghouse chamber, enabling the operations team to quickly identify faulty bags and reduce the risk of dust emissions. Work is ongoing on the furnace O₂ analyser project, which will enhance combustion efficiency. A furnace camera is also being installed to provide better monitoring of the fluidised bed, supporting improved plant availability. In addition, the team is implementing new operating techniques learned from EBARA in Japan to further stabilise the process and increase overall availability."]

{"sheet":"Public Liasion","index":8,"n_rows":29,"n_cols":5,"rows_kept":29,"cut":false,"hidden":false,"merged":[[23,0,24,1],[23,2,24,8],[25,0,26,1],[25,2,26,8],[28,0,28,8],[17,0,18,1],[19,0,20,1],[21,0,22,1],[17,2,22,8],[16,0,16,1],[16,2,16,8],[12,0,13,1],[12,2,13,8],[15,0,15,8],[6,2,11,8],[5,0,5,1],[5,2,5,8],[6,0,7,1],[8,0,9,1],[10,0,11,1]]}
[{"$f":"+'Cover Page'!$B$29","v":"Annual Performance Report 2025"},null,null,null,{"$f":"+'Cover Page'!$B$33","v":"Kent Enviropower Limited"}]
[]
["Details of Public & Stakeholder Liaison"]
[]
["Summary of events held during the reporting year."]
["Date",null,"Description"]
["2025-02-24",null,"The Facility has an active liaison group involving representatives from the following stakeholders:\n\n• Chairman - Mr Brian White\n• Environment Agency \n• 10 Local Residents \n• Councillors Walker and Hammond (TMBC members) \n• Councillors Robertson, Harwood.\n• Councillors Homewood and Bird (KCC members)\n• Maidstone Borough Council Environmental Health, Wilcock \n• Councillors Walker and Balcombe (Aylesford Parish Council)\n• Tonbridge & Malling & Maidstone Borough Council Environmental Health \n• Kent County Council Waste Management \n• Kent Enviropower"]
[]
["2025-06-26"]
[]
["2025-11-11"]
[]
[null,null,"The facility also hosts regular visits from locally interested parties and schools and regularly visits local schools to introduce the industry in an educational setting."]
[]
[]
["List of events planned for next year"]
["Date",null,"Description"]
["2026-02-01",null,"Opposite are the months for the Liaison meetings planned for 2025. There have been some spaces that have become available at the meeting. Invites have been sent out to prospective new members and all spaces have now been filled"]
[]
["2026-06-01"]
[]
["2026-10-01"]
[]
[]
[]
[]
[]
[]
["If you wish to be involved in the public liaison programme, please contact \nBrian White (Chairman) - Email: drbdwhite@yahoo.co.uk"]

{"sheet":"CO2 N2O","index":9,"n_rows":26,"n_cols":6,"rows_kept":26,"cut":false,"hidden":false,"merged":[[6,5,9,5],[22,2,22,3],[25,1,25,3],[16,2,16,3],[4,0,4,3],[9,0,9,3],[17,0,17,3],[13,0,13,3],[12,0,12,1],[8,2,8,3],[11,2,11,3],[19,2,19,3]]}
[{"$f":"+'Cover Page'!$B$29","v":"Annual Performance Report 2025"},null,{"$f":"+'Cover Page'!$B$33","v":"Kent Enviropower Limited"}]
[]
["Carbon dioxide emissions and biogenic content of waste inputs",null,null,null,null,"Notes:"]
[]
["Carbon dioxide emissions (all types of plant)"]
[null,"Annual mass of carbon dioxide released","tonnes ",531000]
[null,"Annual mass of carbon dioxide released per tonne of waste burned","t CO2 / t waste ",1.22,null,"Note 1: All permits require operators to continuously monitor CO2 to EN14181 and flow to BS EN 16911-2 (unless otherwise agreed in writing). Operators must therefore use the results from these instruments to calculate their annual CO2 emissions. Where an operator does not have a flow meter calibrated to BS EN 16911-2, the averaged flow measurement from that year's periodic monitoring can be used instead. If the plant does not have calibrated CO2 CEMS, a suitably justified emissions factor can be used. \n\n"]
[null,"Annual mass of carbon dioxide released per MWh of energy exported","t CO2 / MWh export ",2.8]
[null,"Description of how annual carbon dioxide mass emission has been calculated. \nSee Note 1","CO2 is obtained from a QAL 2 calibrated CEMS"]
["Nitrous oxide emissions (only plants which use ammonia or urea to abate NOx emissions)"]
[null,"Annual mass emissions of nitrous oxide","tonnes N2O",10.199]
[null,"Description of how annual nitrous oxide mass emission has been calculated\nSee Note 2","N2O is obtained from a QAL 2 calibrated CEMS",null,null,"Note 2: All permits require operators to continuously monitor N2O to EN14181 and flow to BS EN 16911-2, unless otherwise agreed in writing. Operators must therefore use the results from these instruments to calculate their annual N2O emissions. Where an operator does not have a flow meter calibrated to BS EN 16911-2, the averaged flow measurement from periodic monitoring can be used instead. If the plant does not have calibrated N2O CEMS, data from periodic monitoring or a suitably justified emissions factor can be used instead."]
["Total annual carbon dioxide + nitrous oxide emissions. \nSee Note 3. ",null,"tonnes CO2e",2703,null,"Note 3: Total annual carbon dioxide and nitrous oxide emissions reported as carbon dioxide equivalent where 1 tonne nitrous oxide is equivalent to 265 tonnes carbon dioxide."]
["Biogenic CO2 emissions (See Note 4)",null,null,null,null,"Note 4: Only plants combusting residual municipal waste, refuse derived fuel or solid recovered fuel need complete this section. "]
[null,"Percentage of total carbon dioxide emissions arising from biogenic waste","%",0.56000000000000005]
[null,"No. of measurements undertaken","Number","1 month sampling"]
[null,"Description of how percentage biogenic carbon dioxide emissions have been measured or calculated.\nSee Note 5","Determination of biogenic carbon content of fuel from stationary sources (based on ASTM D6866/EN ISO 13833)",null,null,"Note 5: The results from C14 sampling should be used if this is carried out at the plant (either via an installed sampler or from spot samples).  \nOtherwise, as an approximation (and in lieu of any more accurate metrics which may be developed in future), the measured or estimated biogenic fraction by net calorific value (see Note 6) can be assumed to be the same as the biogenic CO2 fraction of the total CO2 emissions from the plant. "]
["Biogenic fraction of waste feedstock (See Note 4)"]
[null,"Yearly average biogenic percentage of the waste by net calorific value (NCV)","%",0.50670000000000004]
[null,"Description of how biogenic percentage (by NCV) has been calculated or estimated. \nSee Note 6","Annual waste sampling was used to determine calculations. C14 samplers are currently being installed.",null,null,"Note 6: If C14 sampling is carried out at the plant, the methodology set out in the embedded document entitled \"Renewable Energy Association Energy Content of Fuels - Description of Method\" embedded below can be used to calculate the biogenic percentage by net calorific value. Otherwise, data from waste sampling or BIOMA software can be used; or if none of these are available, an estimated figure with justification or a figure assumed on the basis of up-to-date industry data can be used. "]
[null,"Yearly average biogenic percentage of the waste by mass","%",0.50700000000000001]
[null,"If waste sampling undertaken, no. of samples used to ascertain average biogenic percentages above","Number",1]
[null,"Description of how biogenic percentage (by mass) has been calculated or estimated. \nSee Note 7","Waste feed analysis carried out annually (these figures are from the 2024 report). The % recorded is all wastes (recorded at 99.14%) minus the following non biogenic waste:-\nPlastic film 14.64%\nDense plastic 16.39%\nNote: Textiles 17.43% - This calculation assumed textiles are 100% biogenic.",null,null,"Note 7: Where available, data from waste sampling should be used; otherwise, an estimated figure with justification can be used, or a figure assumed on the basis of up-to-date industry data. "]
[]
[null,"Comments:"]
[null,"CO2 and N2O have come directly from the continuous emission monitoring system (CEMS) and are both QAL 2 calibrated with calibration functions in place. Biogenic CO2 comes from a single C14 testing process."]

{"sheet":"Residues","index":10,"n_rows":49,"n_cols":11,"rows_kept":49,"cut":false,"hidden":false,"merged":[[48,0,53,6],[44,3,44,4],[47,0,47,6],[39,0,40,1],[41,0,41,1],[42,0,42,1],[43,0,43,1],[44,0,44,1],[41,3,41,4],[42,3,42,4],[41,5,41,6],[42,5,42,6],[43,5,43,6],[44,5,44,6],[45,0,45,6],[32,0,33,1],[32,2,33,6],[34,0,35,1],[34,2,35,6],[43,3,43,4],[39,2,40,2],[40,3,40,4],[40,5,40,6],[39,3,39,6],[38,0,38,6],[4,0,12,8],[4,10,12,13],[28,0,29,1],[28,2,29,6],[30,0,31,1],[30,2,31,6],[24,0,24,6],[25,0,25,1],[25,2,25,6],[17,0,18,6],[19,0,20,6],[21,0,22,6],[26,0,27,1],[26,2,27,6]]}
[{"$f":"+'Cover Page'!$B$29","v":"Annual Performance Report 2025"},null,null,null,{"$f":"+'Cover Page'!$B$33","v":"Kent Enviropower Limited"}]
[]
["Summary of Residue Handling for the reporting year"]
[]
["Waste Description:  Bottom Ash\nParameter to be measured :\nTOC, Metals (Cd, Tl, Hg, Pb, Cr, Cu, Mn, Ni, As, Co, V, Sb, Zn)  and  their  compounds  and  \nthe total   soluble fraction of these metals, dioxins/ furans and dioxin like PCB’s. Sampling \nand analysis as per Agency ash sampling protocol.\n\nFrequency:\nQuarterly (with  the exception of the total soluble fraction which shall   be   \nsampled and analysed  before the use of a new disposal or recycling route).\nHazard assessment undertaken twice a month (24 samples a year)",null,null,null,null,null,null,null,null,null,"Include in here a summary of residue handling regimes and destinations "]
[]
[]
[]
[]
[]
[]
[]
[]
[]
["Residue Quality Monitoring Requirements"]
[]
["Summary of monitoring undertaken and compliance"]
["Twenty-four random IBA samples were sent for testing and returned as non-hazardous."]
[]
["The Total Organic Carbon (TOC) results for all quarterly samples showed an average of less than 1%, indicating consistently low organic content throughout the monitoring period."]
[]
[]
[]
[]
["Commentary on any specific events"]
["Date & Event",null,"Description"]
["17th December 2025",null,"laboratory analysis and hazardous property assessment which showed that this sample was below limits for HP4 (irritant), HP7 (carcinogenic) and HP8 (corrosive). However, the sample exceeded the concentration limit for HP14 (ecotoxic) due to elevated levels of copper."]
[]
[]
[]
[]
[]
[]
[]
[]
[]
[]
[]
["Residue Quality Monitoring Results"]
["Parameter (unit) ",null,"Limit*","Normal Operation "]
[null,null,null,"Bottom ash  ",null,"APC Residues"]
["Loss on Ignition (average %)",null,"<5%","NA"]
["Total Organic Carbon (average %)",null,"<3%","<1%"]
["No. of Assessments Undertaken",null,"---",28,null,4]
["No. of Hazardous Results",null,"---",0]
["* The permit will specify a limit of either 5% loss on ignition or 3% total organic carbon. If both are measured anyway, please enter the results here, even where the limit does not apply. "]
[]
["Comments :"]
["* The new permit variation BREF (BR4551IC version 012) no longer requires LOI to be recorded.\n** This equates to 24 IBA hazard assessments and 4 quarterly reports."]

{"sheet":"Water","index":11,"n_rows":36,"n_cols":9,"rows_kept":36,"cut":false,"hidden":false,"merged":[[29,0,29,2],[29,3,29,4],[26,0,26,2],[26,3,26,4],[27,0,27,2],[27,3,27,4],[28,0,28,2],[28,3,28,4],[23,0,23,2],[23,3,23,4],[24,0,24,2],[24,3,24,4],[25,0,25,2],[25,3,25,4],[21,0,21,8],[22,0,22,2],[22,3,22,4],[14,0,15,1],[14,2,15,8],[16,0,17,1],[16,2,17,8],[18,0,19,1],[18,2,19,8],[5,0,6,8],[7,0,8,8],[9,0,10,8],[12,0,12,8],[13,0,13,1],[13,2,13,8],[34,0,34,2],[34,3,34,4],[35,0,35,2],[35,3,35,4],[30,0,30,2],[30,3,30,4],[31,0,31,2],[31,3,31,4],[33,0,33,2],[33,3,33,4],[32,0,32,2],[32,3,32,4]]}
[{"$f":"+'Cover Page'!$B$29","v":"Annual Performance Report 2025"},null,null,null,{"$f":"+'Cover Page'!$B$33","v":"Kent Enviropower Limited"}]
[]
["Emissions to Water"]
[]
["Summary of monitoring undertaken and compliance"]
["Parameters for which reports shall be made, in accordance with conditions of the Consent to the Discharge of Trade Effluent issued by Southern Water, are listed below and are measured monthly. \n\nThese are not Environmental Permit limits but limits for disposal of effluent water discharged down sewage drains."]
[]
["These are not Environmental Permit limits but limits for disposal of effluent water discharged down sewage drains."]
[]
[]
[]
[]
["Commentary on any specific events"]
["Date & Event",null,"Description"]
["2025-04-01",null,"This sampling point is problematic because it is often dry, making it difficult to obtain a representative sample. Unfortunately, there is no alternative sampling point available on site."]
[]
[]
[]
[]
[]
[]
["Emissions to Water / Sewer"]
["Parameter",null,null,"Monitoring Frequency",null,"Limit","Target","Max.","Average"]
["Arsenic",null,null,"monthly",null,1,1,0.1,7.4999999999999997E-2]
["COD shaken",null,null,"monthly",null,800,800,48,14.416666666666664]
["Chromium",null,null,"monthly",null,1,1,0.1,6.3333333333333339E-2]
["Copper",null,null,"monthly",null,1,1,1,0.75]
["Fluoride",null,null,"monthly",null,2,2,0.5,0.20833333333333337]
["Lead",null,null,"monthly",null,1,1,3.1,0.62499999999999989]
["Molybdenum",null,null,"monthly",null,1,1,0.2,8.3333333333333329E-2]
["Nickel",null,null,"monthly",null,1,1,1,0.15]
["Selenium",null,null,"monthly",null,1,1,0.1,7.4999999999999997E-2]
["Sulphate",null,null,"monthly",null,500,500,140,57.166666666666664]
["Suspended solids",null,null,"monthly",null,200,200,1104,117.66666666666667]
["Zinc",null,null,"monthly",null,3,3,0.3,0.10833333333333335]
["pH",null,null,"monthly",null,null,null,9.5,6]

{"sheet":"Air (periodic)","index":12,"n_rows":40,"n_cols":11,"rows_kept":40,"cut":false,"hidden":false,"merged":[[13,10,14,12],[15,10,16,10],[15,11,16,11],[15,12,16,12],[18,3,18,4],[13,3,13,4],[14,3,14,4],[15,3,15,4],[16,3,16,4],[17,3,17,4],[21,3,21,4],[22,3,22,4],[23,3,23,4],[24,3,24,4],[31,3,31,4],[25,3,25,4],[26,3,26,4],[28,3,28,4],[38,0,38,9],[19,0,19,1],[20,0,20,1],[21,0,21,1],[34,3,34,4],[35,3,35,4],[33,0,33,1],[34,0,34,1],[35,0,35,1],[36,0,36,1],[24,0,24,1],[32,3,32,4],[27,3,27,4],[33,3,33,4],[19,3,19,4],[20,3,20,4],[39,0,40,9],[25,0,25,1],[26,0,26,1],[22,0,22,1],[23,0,23,1],[37,0,37,1],[27,0,27,1],[28,0,28,1],[29,0,29,1],[30,0,30,1],[31,0,31,1],[32,0,32,1],[37,3,37,4],[29,3,29,4],[30,3,30,4],[36,3,36,4],[16,0,16,1],[17,0,17,1],[18,0,18,1],[13,0,13,1],[14,0,14,1],[15,0,15,1],[12,0,12,1],[11,3,11,4],[12,3,12,4],[9,0,10,1],[9,5,9,9],[9,3,10,4],[9,2,10,2],[5,10,8,13],[9,10,11,13],[8,0,8,9],[5,0,6,9],[11,0,11,1]]}
[{"$f":"+'Cover Page'!$B$29","v":"Annual Performance Report 2025"},null,null,null,{"$f":"+'Cover Page'!$B$33","v":"Kent Enviropower Limited"}]
[]
["Emissions to Air (periodically monitored)"]
[]
["Summary of monitoring undertaken, standards used and compliance",null,null,null,null,null,null,null,null,null,"Notes:"]
["Bi annual monitoring by an accredited test house.",null,null,null,null,null,null,null,null,null,"Template may require adjustment for any bespoke monitoring requirements of permit - please also check that all default ELV values, reference periods and the stated oxygen reference value match those for your plant, and edit if necessary!"]
[]
[]
["Results of emissions to air that are periodically monitored - oxygen reference 11% "]
["Substance",null,"Ref. Period","Emission Limit Value",null,"Average",null,null,null,null,"User to add additional tables as necessary, depending on whether quarterly or bi-annual reporting is required for the compliance year"]
[null,null,null,null,null,"A1","A2","A3","A4","A5"]
["Hydrogen fluoride",null,"1 hr","1 mg/m3",null,0.26500000000000001,4.1000000000000002E-2,4.1999999999999996E-2]
["Cd and Tl and their compounds",null,"0.5-8hrs","0.02 mg/m3",null,1E-3,9.5E-4,9.6000000000000002E-4]
["Hg and its compounds",null,"0.5-8hrs","0.02 mg/m3",null,1.1000000000000001E-3,6.3000000000000003E-4,7.2999999999999996E-4]
["Sb, As, Pb, Cr, Co, Cu, Mn, Ni, V and their compounds",null,"0.5-8hrs","0.3 mg/m3",null,5.595E-2,6.0850000000000001E-2,2.3200000000000002E-2]
["Dioxins & Furans (I-TEQ)",null,"6-8hrs","0.06 ng/m3",null,4.6199999999999998E-2,4.8349999999999997E-2,4.4350000000000001E-2]
["PCBs (WHO-TEQ Humans / Mammals)",null,"6-8hrs","None set ng/m3",null,2.7000000000000001E-3,2.4755000000000003E-3,2.3414999999999998E-3]
["PCBs (WHO-TEQ Fish)",null,"6-8hrs","None set ng/m3",null,1.1E-4,1.02E-4,9.4499999999999993E-5]
["PCBs (WHO-TEQ Birds)",null,"6-8hrs","None set ng/m3",null,4.8999999999999998E-3,4.3064999999999996E-3,4.3870000000000003E-3]
["Dioxins & Furans (WHO-TEQ Humans / Mammals)",null,"6-8hrs","None set ng/m3",null,4.4600000000000001E-2,4.7050000000000002E-2,4.4200000000000003E-2]
["Dioxins & Furans (WHO-TEQ Fish)",null,"6-8hrs","None set ng/m3",null,3.7400000000000003E-2,5.2850000000000008E-2,3.3950000000000001E-2]
["Dioxins & Furans (WHO-TEQ Birds)",null,"6-8hrs","None set ng/m3",null,5.3449999999999998E-2,5.1799999999999999E-2,4.4999999999999998E-2]
["Anthanthrene",null,"6-8hrs","None set µg/m3",null,2.5500000000000002E-3,2.5999999999999999E-3,3.3999999999999998E-3]
["Benzo{a}anthracene",null,"6-8hrs","None set µg/m3",null,4.15E-3,4.2500000000000003E-3,5.45E-3]
["Benzo[b]fluoranthene",null,"6-8hrs","None set µg/m3",null,6.9999999999999999E-4,6.9999999999999999E-4,8.9999999999999998E-4]
["Benzo[k]fluoranthene",null,"6-8hrs","None set µg/m3",null,6.9999999999999999E-4,6.9999999999999999E-4,8.9999999999999998E-4]
["Benzo[b]naph(2,1-d}thiophene",null,"6-8hrs","None set µg/m3",null,8.4999999999999995E-4,6.9999999999999999E-4,8.9999999999999998E-4]
["Benzo[c]phenanthrene",null,"6-8hrs","None set µg/m3",null,6.9999999999999999E-4,6.9999999999999999E-4,8.9999999999999998E-4]
["Benzo[ghi]perylene",null,"6-8hrs","None set µg/m3",null,2.2000000000000001E-3,2.2499999999999998E-3,2.8999999999999998E-3]
["Benzo[a]pyrene",null,"6-8hrs","None set µg/m3",null,6.9999999999999999E-4,6.9999999999999999E-4,8.9999999999999998E-4]
["Cholanthrene",null,"6-8hrs","None set µg/m3",null,6.9999999999999999E-4,6.9999999999999999E-4,8.9999999999999998E-4]
["Chrysene",null,"6-8hrs","None set µg/m3",null,3.3500000000000001E-3,2.5999999999999999E-3,3.3999999999999998E-3]
["Cyclopenta(cd)pyrene",null,"6-8hrs","None set µg/m3",null,6.9999999999999999E-4,6.9999999999999999E-4,8.9999999999999998E-4]
["Dibenzo[ah]anthracene",null,"6-8hrs","None set µg/m3",null,3.0000000000000001E-3,3.0999999999999999E-3,3.9500000000000004E-3]
["Dibenzo[ai]pyrene",null,"6-8hrs","None set µg/m3",null,7.4000000000000003E-3,7.6E-3,9.7999999999999997E-3]
["Fluoranthene",null,"6-8hrs","None set µg/m3",null,1.7999999999999999E-2,6.1999999999999998E-3,9.2499999999999995E-3]
["Indeno[1,2,3-cd]pyrene",null,"6-8hrs","None set µg/m3",null,2.5000000000000001E-3,2.5500000000000002E-3,3.3E-3]
["Naphthalene",null,"6-8hrs","None set µg/m3",null,0.25080000000000002,0.25679999999999997,0.33110000000000001]
["Comments :"]
["N/A"]

{"sheet":"Air (CEMS)","index":13,"n_rows":29,"n_cols":14,"rows_kept":29,"cut":false,"hidden":false,"merged":[[28,0,29,12],[13,0,14,0],[5,0,6,12],[7,0,8,12],[10,0,10,12],[11,0,12,0],[11,2,12,2],[11,1,12,1],[11,3,11,4],[11,5,11,6],[11,7,11,8],[11,9,11,10],[11,11,11,12],[14,13,15,13],[14,14,15,14],[14,15,15,15],[12,13,13,15],[26,0,26,12]]}
[{"$f":"+'Cover Page'!$B$29","v":"Annual Performance Report 2025"},null,null,null,null,null,null,null,{"$f":"+'Cover Page'!$B$33","v":"Kent Enviropower Limited"}]
[]
["Emissions to Air (continuously monitored)"]
[null,null,null,null,null,null,null,null,null,null,null,null,null,"Notes:"]
["Summary of monitoring undertaken, standards used and compliance",null,null,null,null,null,null,null,null,null,null,null,null,"Template may require adjustment for any bespoke monitoring requirements of permit"]
["All monitoring conducted on accredited MCERT emission monitoring equipment with relevant QAL 2 data entered and regular QAL 3 testing carried out.",null,null,null,null,null,null,null,null,null,null,null,null,"Please check that all default ELV values match those for your plant and edit if necessary!"]
[null,null,null,null,null,null,null,null,null,null,null,null,null,"Report to 1 decimal place"]
[]
[]
[]
["Results of emissions to air that are continuously monitored (maximum and average values for each line) - oxygen reference 11%"]
["Substance","Reference Period","Emission Limit Value","A1",null,"A2",null,"A3",null,"A4",null,"A5"]
[null,null,null,"Max.","Avg.","Max.","Avg.","Max.","Avg.","Max.","Avg.","Max.","Avg."]
["Oxides of nitrogen","Daily mean","180 mg/m3 ",171.66960144042969,134.11149826201731,171.85075378417969,144.11538218939555,165.13227844238281,124.47483596166232]
[null,"½ hourly mean","400 mg/m3 ",313.89761352539063,134.39393486140295,304.30706787109375,144.56467183216873,324.25469970703125,124.67581365846748]
["Particulates","Daily mean","5 mg/m3",4.6962060928344727,1.942050917370062,3.9271819591522217,1.9053346840187038,3.68904709815979,1.5995209492629729]
[null,"½ hourly mean","30 mg/m3 ",8.7583723068237305,1.9481982711880315,9.1025848388671875,1.915081235217456,7.0755429267883301,1.6020918211081243]
["Total Organic Carbon ","Daily mean","10 mg/m3 ",5.7767109870910645,0.41742021774841964,1.8646490573883057,0.40187982022463165,1.3884119987487793,0.40540264652360541]
[null,"½ hourly mean*","20 mg/m3 ",360.76873779296875,0.47325311991754665,58.214324951171875,0.41629203931947406,27.241083145141602,0.41095281654845167]
["Hydrogen chloride ","Daily mean","8 mg/m3 ",7.1732439994812012,5.8323368835808482,7.1196660995483398,5.6132545293410487,7.6659808158874512,6.0494858754698271]
[null,"½ hourly mean","60 mg/m3 ",67.112319946289063,5.8135052155897151,46.863632202148438,5.5557221016783913,56.279773712158203,6.0161210031674237]
["Sulphur dioxide","Daily mean","40 mg/m3 ",4.7942910194396973,1.0024587615339275,4.952603816986084,0.74004785149800878,11.276118278503418,0.34259443668670436]
[null,"½ hourly mean","200 mg/m3 ",111.61746978759766,1.0239664002427338,140.26438903808594,0.74905256871528658,482.57366943359375,0.33828852539826881]
["Carbon monoxide ","Daily mean","50 mg/m3 ",58.635723114013672,5.136976640788296,34.010364532470703,7.0772675024829823,17.363653182983398,2.8583378645681123]
[null,"95%ile 10-min avg *","150 mg/m3 *",6.9149088859558105,"NA",26.668613592783611,"NA",9.6247571508089695,"NA"]
[" Ammonia","Daily mean","15 mg/m3 ",1.3844180107116699,0.25325362967508724,0.83497601747512817,0.21779353351468719,0.81117397546768188,0.22319069492915386]
["* = delete as appropriate, depending on whether your plant has half-hourly or 10-min CO ELVs\n"]
["Comments :"]
["* TOC is 97% of all half hour averages in a rolling year and this has been compliant for all periods."]

{"sheet":"HCl","index":14,"n_rows":79,"n_cols":17,"rows_kept":79,"cut":false,"hidden":false,"merged":[[12,16,15,18],[51,9,63,9],[66,9,78,9],[4,9,4,14],[4,1,4,3],[4,4,4,6],[48,0,51,6],[47,0,47,6],[6,9,18,9],[21,9,33,9],[36,9,48,9],[3,16,7,18],[9,16,11,18],[18,4,18,6]]}
[{"$f":"+'Cover Page'!$B$29","v":"Annual Performance Report 2025"},null,null,null,{"$f":"+'Cover Page'!$B$33","v":"Kent Enviropower Limited"}]
[]
["Monitoring of Hydrogen Chloride emissions",null,null,"Whole Installation",null,null,"See  Notes in Cell Q3",null,null,{"$f":"+A3","v":"Monitoring of Hydrogen Chloride emissions"},null,null,null,"Per Combustion Line",null,null,"Notes:"]
[null,null,null,null,null,null,null,null,null,null,null,null,null,null,null,null,"User to add logic to complete Whole installation, Table A5:G18. From the data in Per Combustion Line, Table J6:O79, subject to No. of lines installed"]
[{"$f":"+'Cover Page'!C39","v":2025},"1/2 Hourly Reference Periods",null,null,"Daily Reference Periods"]
["mg/Nm3","1/2 hourly HCl ELV","Monthly mean of half-hourly averages","Highest half- hourly average","Daily HCl ELV","Monthly mean of  daily averages","Highest daily average",null,null,{"$f":"+A5","v":2025},"mg/Nm3","Monthly mean of half-hourly averages","Highest half- hourly average","Monthly mean of  daily averages","Highest daily average"]
["Jan",60,{"$f":"AVERAGE(L7,L22,L37)","v":3.3138748563525589},{"$f":"AVERAGE(M7,M22,M37)","v":9.701959927876791},8,{"$f":"AVERAGE(N7,N22,N37)","v":3.3510499492378201},{"$f":"AVERAGE(O7,O22,O37)","v":6.4220779736836748},null,null,"A1","Jan",2.8368236223856607,9.1934051513671875,2.8368235980310748,6.5250120162963867]
["Feb",60,{"$f":"AVERAGE(L8,L23,L38)","v":6.2686777513774388},{"$f":"AVERAGE(M8,M23,M38)","v":16.431058883666992},8,{"$f":"AVERAGE(N8,N23,N38)","v":6.3171350381119922},{"$f":"AVERAGE(O8,O23,O38)","v":7.1373807589213056},null,null,null,"Feb",6.3738352849501974,12.77888011932373,6.3907957077026367,7.115023136138916]
["Mar",60,6.3387914812607233,14.624935150146484,8,6.3582897981007891,7.1476262410481768,null,null,null,"Mar",6.3357944039509606,15.205820083618164,6.3414134979248047,7.1732439994812012,null,"Whole Installation table A5:G18:"]
["Apr",60,6.2481721401539749,12.228871981302897,8,6.3993039131164551,7.2001136144002276,null,null,null,"Apr",6.3919947437919609,12.369385719299316,6.459044607062089,6.850471019744873,null,"Mean: for 1/2 hourly and daily periods calculate mean of values across all operational combustion lines for the month"]
["May",60,6.2352161364319789,13.149836222330729,8,6.2356997239546965,6.7686651547749834,null,null,null,"May",6.4208592759665626,14.649064064025879,6.4208592445619646,6.8484492301940918]
["Jun",60,6.3298483202221076,14.694929122924805,8,6.3717615975526272,6.9372293154398603,null,null,null,"Jun",6.2995286895178655,15.292444229125977,6.3771610430308749,6.7717142105102539]
["Jul",60,6.2551198314370593,38.026765505472817,8,6.2885102886841331,6.8599837621053057,null,null,null,"Jul",6.3691393365941558,67.112319946289063,6.3423317909240726,6.7370529174804688,null,"Maximum: for 1/2 hourly and daily periods use the highest value across all operational combustion lines for the month"]
["Aug",60,6.4130840790738866,28.338253339131672,8,6.4139514106443558,7.021473566691081,null,null,null,"Aug",6.3887586321149552,12.884350776672363,6.4070835113525391,7.0047478675842285]
["Sep",60,4.7260292926656371,11.101215998331705,8,4.7704643491370682,6.0667589505513506,null,null,null,"Sep",4.7349047923627667,10.58892822265625,4.683114983818748,6.5128688812255859]
["Oct",60,6.0154257303604011,10.668807029724121,8,6.0475371054698428,6.9026336669921875,null,null,null,"Oct",5.7921408169751043,9.6306295394897461,5.856391578912735,6.8862137794494629]
["Nov",60,5.4826278291253132,11.614399274190268,8,5.5135937594391455,6.9056930541992188,null,null,null,"Nov",5.9796759009108165,13.191842079162598,6.0850054841292529,6.8217201232910156]
["Dec",60,5.9145258332810364,23.886218070983887,8,5.9130122201179711,6.858016649881999,null,null,null,"Dec",5.8386070875555669,13.001428604125977,5.7880175555193869,6.7584562301635742]
[null,null,null,null,null,null,null,null,null,null,"Annual",{"$f":"AVERAGE(L7:L18)","v":5.8135052155897151},{"$f":"MAX(M7:M18)","v":67.112319946289063},{"$f":"AVERAGE(N7:N18)","v":5.8323368835808482},{"$f":"MAX(O7:O18)","v":7.1732439994812012}]
[]
[null,null,null,null,null,null,null,null,null,{"$f":"+A5","v":2025},"mg/Nm3","Monthly mean of half-hourly averages","Highest half- hourly average","Monthly mean of  daily averages","Highest daily average"]
[null,null,null,null,null,null,null,null,null,"A2","Jan",2.8904266567158126,9.0455951690673828,2.9262936244840208,5.8837590217590332]
[null,null,null,null,null,null,null,null,null,null,"Feb",6.1251754578939197,22.906034469604492,6.2090879353609951,7.1196660995483398]
[null,null,null,null,null,null,null,null,null,null,"Mar",5.8164676731608749,17.339984893798828,5.8763588942014255,7.0004129409790039]
[null,null,null,null,null,null,null,null,null,null,"Apr",6.0604668720070984,14.033663749694824,6.2937582417538289,7.0838890075683594]
[null,null,null,null,null,null,null,null,null,null,"May",5.8409585167975404,13.908980369567871,5.8424092372258505,6.6333880424499512]
[null,null,null,null,null,null,null,null,null,null,"Jun",6.18246589186609,15.308223724365234,6.2481841659545898,6.9846267700195313]
[null,null,null,null,null,null,null,null,null,null,"Jul",5.8742622550586505,35.218067169189453,6.0012411854483867,6.8240551948547363]
[null,null,null,null,null,null,null,null,null,null,"Aug",6.3335282807279896,15.850635528564453,6.3227007800135118,6.9576148986816406]
[null,null,null,null,null,null,null,null,null,null,"Sep",3.6412373033894032,11.484389305114746,3.6690061330795287,4.6628069877624512]
[null,null,null,null,null,null,null,null,null,null,"Oct",6.0783469634701701,12.699304580688477,6.1110678740910123,7.0714530944824219]
[null,null,null,null,null,null,null,null,null,null,"Nov",5.7030559002437604,12.594706535339355,5.6906241226196288,6.8973560333251953]
[null,null,null,null,null,null,null,null,null,null,"Dec",6.1222734488093815,46.863632202148438,6.1683221578598024,6.9879698753356934]
[null,null,null,null,null,null,null,null,null,null,"Annual",{"$f":"AVERAGE(L22:L33)","v":5.5557221016783913},{"$f":"MAX(M22:M33)","v":46.863632202148438},{"$f":"AVERAGE(N22:N33)","v":5.6132545293410487},{"$f":"MAX(O22:O33)","v":7.1196660995483398}]
[]
[null,null,null,null,null,null,null,null,null,{"$f":"+A5","v":2025},"mg/Nm3","Monthly mean of half-hourly averages","Highest half- hourly average","Monthly mean of  daily averages","Highest daily average"]
[null,null,null,null,null,null,null,null,null,"A3","Jan",4.2143742899562033,10.866879463195801,4.2900326251983643,6.8574628829956055]
[null,null,null,null,null,null,null,null,null,null,"Feb",6.307022511288201,13.608262062072754,6.3515214712723438,7.1774530410766602]
[null,null,null,null,null,null,null,null,null,null,"Mar",6.8641123666703328,11.329000473022461,6.8570970021761379,7.2692217826843262]
[null,null,null,null,null,null,null,null,null,null,"Apr",6.2920548046628637,10.283566474914551,6.4451088905334473,7.6659808158874512]
[null,null,null,null,null,null,null,null,null,null,"May",6.4438306165318338,10.891464233398438,6.4438306900762745,6.8241581916809082]
[null,null,null,null,null,null,null,null,null,null,"Jun",6.5075503792823657,13.484119415283203,6.4899395836724176,7.0553469657897949]
[null,null,null,null,null,null,null,null,null,null,"Jul",6.5219579026583698,11.749909400939941,6.5219578896799399,7.0188431739807129]
[null,null,null,null,null,null,null,null,null,null,"Aug",6.5169653243787158,56.279773712158203,6.5120699405670166,7.102057933807373]
[null,null,null,null,null,null,null,null,null,null,"Sep",5.8019457822447427,11.230330467224121,5.9592719305129283,7.0246009826660156]
[null,null,null,null,null,null,null,null,null,null,"Oct",6.1757894106359288,9.6764869689941406,6.1751518634057811,6.7502341270446777]
[null,null,null,null,null,null,null,null,null,null,"Nov",4.765151686221361,9.0566492080688477,4.7651516715685522,6.9980030059814453]
["Comments :",null,null,null,null,null,null,null,null,null,"Dec",5.78269696347816,11.793593406677246,5.7826969469747231,6.8276238441467285]
["N/A",null,null,null,null,null,null,null,null,null,"Annual",{"$f":"AVERAGE(L37:L48)","v":6.0161210031674237},{"$f":"MAX(M37:M48)","v":56.279773712158203},{"$f":"AVERAGE(N37:N48)","v":6.0494858754698271},{"$f":"MAX(O37:O48)","v":7.6659808158874512}]
[]
[null,null,null,null,null,null,null,null,null,{"$f":"+A5","v":2025},"mg/Nm3","Monthly mean of half-hourly averages","Highest half- hourly average","Monthly mean of  daily averages","Highest daily average"]
[null,null,null,null,null,null,null,null,null,"A4","Jan"]
[null,null,null,null,null,null,null,null,null,null,"Feb"]
[null,null,null,null,null,null,null,null,null,null,"Mar"]
[null,null,null,null,null,null,null,null,null,null,"Apr"]
[null,null,null,null,null,null,null,null,null,null,"May"]
[null,null,null,null,null,null,null,null,null,null,"Jun"]
[null,null,null,null,null,null,null,null,null,null,"Jul"]
[null,null,null,null,null,null,null,null,null,null,"Aug"]
[null,null,null,null,null,null,null,null,null,null,"Sep"]
[null,null,null,null,null,null,null,null,null,null,"Oct"]
[null,null,null,null,null,null,null,null,null,null,"Nov"]
[null,null,null,null,null,null,null,null,null,null,"Dec"]
[null,null,null,null,null,null,null,null,null,null,"Annual",{"$f":"AVERAGE(L52:L63)","v":{"$error":"#DIV/0!"}},{"$f":"MAX(M52:M63)","v":0},{"$f":"AVERAGE(N52:N63)","v":{"$error":"#DIV/0!"}},{"$f":"MAX(O52:O63)","v":0}]
[]
[null,null,null,null,null,null,null,null,null,{"$f":"+A5","v":2025},"mg/Nm3","Monthly mean of half-hourly averages","Highest half- hourly average","Monthly mean of  daily averages","Highest daily average"]
[null,null,null,null,null,null,null,null,null,"A5","Jan"]
[null,null,null,null,null,null,null,null,null,null,"Feb"]
[null,null,null,null,null,null,null,null,null,null,"Mar"]
[null,null,null,null,null,null,null,null,null,null,"Apr"]
[null,null,null,null,null,null,null,null,null,null,"May"]
[null,null,null,null,null,null,null,null,null,null,"Jun"]
[null,null,null,null,null,null,null,null,null,null,"Jul"]
[null,null,null,null,null,null,null,null,null,null,"Aug"]
[null,null,null,null,null,null,null,null,null,null,"Sep"]
[null,null,null,null,null,null,null,null,null,null,"Oct"]
[null,null,null,null,null,null,null,null,null,null,"Nov"]
[null,null,null,null,null,null,null,null,null,null,"Dec"]
[null,null,null,null,null,null,null,null,null,null,"Annual",{"$f":"AVERAGE(L67:L78)","v":{"$error":"#DIV/0!"}},{"$f":"MAX(M67:M78)","v":0},{"$f":"AVERAGE(N67:N78)","v":{"$error":"#DIV/0!"}},{"$f":"MAX(O67:O78)","v":0}]

{"sheet":"SO2","index":15,"n_rows":79,"n_cols":17,"rows_kept":79,"cut":false,"hidden":false,"merged":[[3,16,7,18],[9,16,11,18],[12,16,15,18],[66,9,78,9],[4,1,4,3],[4,4,4,6],[4,9,4,14],[6,9,18,9],[21,9,33,9],[36,9,48,9],[47,0,47,6],[48,0,51,6],[51,9,63,9],[18,4,18,6]]}
[{"$f":"+'Cover Page'!$B$29","v":"Annual Performance Report 2025"},null,null,null,{"$f":"+'Cover Page'!$B$33","v":"Kent Enviropower Limited"}]
[]
["Monitoring of Sulphur dioxide emissions",null,null,"Whole Installation",null,null,"See  Notes in Cell Q3",null,null,{"$f":"+A3","v":"Monitoring of Sulphur dioxide emissions"},null,null,null,"Per Combustion Line",null,null,"Notes:"]
[null,null,null,null,null,null,null,null,null,null,null,null,null,null,null,null,"User to add logic to complete Whole installation, Table A5:G18. From the data in Per Combustion Line, Table J6:O79, subject to No. of lines installed"]
[{"$f":"+'Cover Page'!C39","v":2025},"1/2 Hourly Reference Periods",null,null,"Daily Reference Periods"]
["mg/Nm3","1/2 hourly SO2 ELV","Monthly mean of half-hourly averages","Highest half- hourly average","Daily SO2 ELV","Monthly mean of  daily averages","Highest daily average",null,null,{"$f":"+A5","v":2025},"mg/Nm3","Monthly mean of half-hourly averages","Highest half- hourly average","Monthly mean of  daily averages","Highest daily average"]
["Jan",200,{"$f":"AVERAGE(L7,L22,L37)","v":0.28453407278896031},{"$f":"AVERAGE(M7,M22,M37)","v":10.609798590342203},40,{"$f":"AVERAGE(N7,N22,N37)","v":0.28567616039095295},{"$f":"AVERAGE(O7,O22,O37)","v":0.51974201202392578},null,null,"A1","Jan",5.8594258824169534E-2,3.8779940605163574,5.8594162279229249E-2,0.24149900674819946]
["Feb",200,{"$f":"AVERAGE(L8,L23,L38)","v":0.37897065731924967},18.162767728169758,40,{"$f":"AVERAGE(N8,N23,N38)","v":0.37594535774198085},0.68271831671396888,null,null,null,"Feb",7.5546907221861997E-2,9.0111360549926758,7.2428615701098278E-2,0.23012000322341919]
["Mar",200,{"$f":"AVERAGE(L9,L24,L39)","v":0.45922716338547404},37.947564681371055,40,{"$f":"AVERAGE(N9,N24,N39)","v":0.43499456236954276},0.87616968154907227,null,null,null,"Mar",0.19848267616623297,93.748863220214844,0.12869714217127434,0.91884297132492065,null,"Whole Installation table A5:G18:"]
["Apr",200,{"$f":"AVERAGE(L10,L25,L40)","v":0.43989048824110161},20.430232842763264,40,{"$f":"AVERAGE(N10,N25,N40)","v":0.45467268321772075},1.0323733488718669,null,null,null,"Apr",0.33065130156506911,10.444450378417969,0.35641163313075114,0.86367499828338623,null,"Mean: for 1/2 hourly and daily periods calculate mean of values across all operational combustion lines for the month"]
["May",200,{"$f":"AVERAGE(L11,L26,L41)","v":0.55938891249390421},29.224058469136555,40,{"$f":"AVERAGE(N11,N26,N41)","v":0.54893281771450908},1.4409046173095703,null,null,null,"May",0.49080040914735634,23.838573455810547,0.49080035102463537,1.2739399671554565]
["Jun",200,{"$f":"AVERAGE(L12,L27,L42)","v":0.659017843650615},59.091918309529625,40,{"$f":"AVERAGE(N12,N27,N42)","v":0.62800864329663431},1.2959896524747212,null,null,null,"Jun",0.5522555349689956,111.61746978759766,0.46591335774532389,0.88916802406311035]
["Jul",200,{"$f":"AVERAGE(L13,L28,L43)","v":0.563039048439953},70.543948491414383,40,{"$f":"AVERAGE(N13,N28,N43)","v":0.51493380842138647},1.1702406406402588,null,null,null,"Jul",0.48277187172347674,105.05638122558594,0.41132327876985075,1.1895489692687988,null,"Maximum: for 1/2 hourly and daily periods use the highest value across all operational combustion lines for the month"]
["Aug",200,{"$f":"AVERAGE(L14,L29,L44)","v":0.61634892399190966},203.37298202514648,40,{"$f":"AVERAGE(N14,N29,N44)","v":0.63951450711864954},5.4623487790425616,null,null,null,"Aug",0.39238390227929421,103.78681945800781,0.41012000402918569,3.6290030479431152]
["Sep",200,{"$f":"AVERAGE(L15,L30,L45)","v":0.46563166276558904},31.055971145629883,40,{"$f":"AVERAGE(N15,N30,N45)","v":0.43801252542303476},1.0285933216412861,null,null,null,"Sep",0.25488174113067147,23.224794387817383,0.21711141164202921,0.61908000707626343]
["Oct",200,{"$f":"AVERAGE(L16,L31,L46)","v":1.176772276693137},20.547327359517414,40,{"$f":"AVERAGE(N16,N31,N46)","v":1.1819466889438723},1.8052943746248882,null,null,null,"Oct",2.6148766782859179,26.964832305908203,2.6143385567120276,3.6179370880126953]
["Nov",200,{"$f":"AVERAGE(L17,L32,L47)","v":1.4134905206568193},39.782293955485024,40,{"$f":"AVERAGE(N17,N32,N47)","v":1.3902848446308171},2.5755553642908731,null,null,null,"Nov",3.3354364145080502,28.165742874145508,3.2855723029688786,4.385807991027832]
["Dec",200,{"$f":"AVERAGE(L18,L33,L48)","v":1.4289184069984433},68.967722336451217,40,{"$f":"AVERAGE(N18,N33,N48)","v":1.4474815996054617},3.4114722808202109,null,null,null,"Dec",3.5009151070917093,62.964057922363281,3.5181943222328469,4.7942910194396973]
[null,null,null,null,null,null,null,null,null,null,"Annual",{"$f":"AVERAGE(L7:L18)","v":1.0239664002427338},{"$f":"MAX(M7:M18)","v":111.61746978759766},{"$f":"AVERAGE(N7:N18)","v":1.0024587615339275},{"$f":"MAX(O7:O18)","v":4.7942910194396973}]
[]
[null,null,null,null,null,null,null,null,null,{"$f":"+A5","v":2025},"mg/Nm3","Monthly mean of half-hourly averages","Highest half- hourly average","Monthly mean of  daily averages","Highest daily average"]
[null,null,null,null,null,null,null,null,null,"A2","Jan",0.46982759151040498,10.172978401184082,0.47339556916900305,0.66995000839233398]
[null,null,null,null,null,null,null,null,null,null,"Feb",0.71310822461445045,22.194221496582031,0.6996514160524715,1.0481679439544678]
[null,null,null,null,null,null,null,null,null,null,"Mar",0.80570783203339758,17.339635848999023,0.79922554584649896,1.136957049369812]
[null,null,null,null,null,null,null,null,null,null,"Apr",0.68944032607038341,46.516220092773438,0.71299395122026143,1.57402503490448]
[null,null,null,null,null,null,null,null,null,null,"May",0.78844376749767731,51.436023712158203,0.7570723295211792,2.2199819087982178]
[null,null,null,null,null,null,null,null,null,null,"Jun",1.0312747686293913,53.180141448974609,1.0250977575778961,2.2896089553833008]
[null,null,null,null,null,null,null,null,null,null,"Jul",0.91676081215201433,97.0008544921875,0.84389363093809644,1.6726809740066528]
[null,null,null,null,null,null,null,null,null,null,"Aug",0.74508751180173605,23.758457183837891,0.75618514007535476,1.4819250106811523]
[null,null,null,null,null,null,null,null,null,null,"Sep",0.86370857508262222,33.357742309570313,0.81316449940204616,1.3913710117340088]
[null,null,null,null,null,null,null,null,null,null,"Oct",0.65287500808270305,27.908702850341797,0.66884057303624489,1.2762620449066162]
[null,null,null,null,null,null,null,null,null,null,"Nov",0.67921926618664297,60.796253204345703,0.65946636080741883,2.0543770790100098]
[null,null,null,null,null,null,null,null,null,null,"Dec",0.63317714092201516,140.26438903808594,0.67158744432963435,4.952603816986084]
[null,null,null,null,null,null,null,null,null,null,"Annual",{"$f":"AVERAGE(L22:L33)","v":0.74905256871528658},{"$f":"MAX(M22:M33)","v":140.26438903808594},{"$f":"AVERAGE(N22:N33)","v":0.74004785149800878},{"$f":"MAX(O22:O33)","v":4.952603816986084}]
[]
[null,null,null,null,null,null,null,null,null,{"$f":"+A5","v":2025},"mg/Nm3","Monthly mean of half-hourly averages","Highest half- hourly average","Monthly mean of  daily averages","Highest daily average"]
[null,null,null,null,null,null,null,null,null,"A3","Jan",0.32518036803230643,17.778423309326172,0.32503874972462654,0.6477770209312439]
[null,null,null,null,null,null,null,null,null,null,"Feb",0.34825684012143643,23.28294563293457,0.35575604147237277,0.76986700296401978]
[null,null,null,null,null,null,null,null,null,null,"Mar",0.37349098195679159,2.754194974899292,0.37706099909085494,0.57270902395248413]
[null,null,null,null,null,null,null,null,null,null,"Apr",0.29957983708785224,4.3300280570983887,0.29461246530214946,0.65942001342773438]
[null,null,null,null,null,null,null,null,null,null,"May",0.39892256083667921,12.397578239440918,0.39892577259771284,0.82879197597503662]
[null,null,null,null,null,null,null,null,null,null,"Jun",0.39352322735345785,12.478143692016602,0.39301481456668291,0.70919197797775269]
[null,null,null,null,null,null,null,null,null,null,"Jul",0.28958446144436795,9.5746097564697266,0.2895845155562124,0.64849197864532471]
[null,null,null,null,null,null,null,null,null,null,"Aug",0.71157535789469883,482.57366943359375,0.7522383772514083,11.276118278503418]
[null,null,null,null,null,null,null,null,null,null,"Sep",0.27830467208347343,36.585376739501953,0.28376166522502899,1.0753289461135864]
[null,null,null,null,null,null,null,null,null,null,"Oct",0.26256514371078987,6.7684469223022461,0.26266093708334431,0.52168399095535278]
[null,null,null,null,null,null,null,null,null,null,"Nov",0.22581588127576552,30.384885787963867,0.22581587011615437,1.2864810228347778]
["Comments :",null,null,null,null,null,null,null,null,null,"Dec",0.15266297298160592,3.6747200489044189,0.15266303225390374,0.48752200603485107]
["N/A",null,null,null,null,null,null,null,null,null,"Annual",{"$f":"AVERAGE(L37:L48)","v":0.33828852539826881},{"$f":"MAX(M37:M48)","v":482.57366943359375},{"$f":"AVERAGE(N37:N48)","v":0.34259443668670436},{"$f":"MAX(O37:O48)","v":11.276118278503418}]
[]
[null,null,null,null,null,null,null,null,null,{"$f":"+A5","v":2025},"mg/Nm3","Monthly mean of half-hourly averages","Highest half- hourly average","Monthly mean of  daily averages","Highest daily average"]
[null,null,null,null,null,null,null,null,null,"A4","Jan"]
[null,null,null,null,null,null,null,null,null,null,"Feb"]
[null,null,null,null,null,null,null,null,null,null,"Mar"]
[null,null,null,null,null,null,null,null,null,null,"Apr"]
[null,null,null,null,null,null,null,null,null,null,"May"]
[null,null,null,null,null,null,null,null,null,null,"Jun"]
[null,null,null,null,null,null,null,null,null,null,"Jul"]
[null,null,null,null,null,null,null,null,null,null,"Aug"]
[null,null,null,null,null,null,null,null,null,null,"Sep"]
[null,null,null,null,null,null,null,null,null,null,"Oct"]
[null,null,null,null,null,null,null,null,null,null,"Nov"]
[null,null,null,null,null,null,null,null,null,null,"Dec"]
[null,null,null,null,null,null,null,null,null,null,"Annual",{"$f":"AVERAGE(L52:L63)","v":{"$error":"#DIV/0!"}},{"$f":"MAX(M52:M63)","v":0},{"$f":"AVERAGE(N52:N63)","v":{"$error":"#DIV/0!"}},{"$f":"MAX(O52:O63)","v":0}]
[]
[null,null,null,null,null,null,null,null,null,{"$f":"+A5","v":2025},"mg/Nm3","Monthly mean of half-hourly averages","Highest half- hourly average","Monthly mean of  daily averages","Highest daily average"]
[null,null,null,null,null,null,null,null,null,"A5","Jan"]
[null,null,null,null,null,null,null,null,null,null,"Feb"]
[null,null,null,null,null,null,null,null,null,null,"Mar"]
[null,null,null,null,null,null,null,null,null,null,"Apr"]
[null,null,null,null,null,null,null,null,null,null,"May"]
[null,null,null,null,null,null,null,null,null,null,"Jun"]
[null,null,null,null,null,null,null,null,null,null,"Jul"]
[null,null,null,null,null,null,null,null,null,null,"Aug"]
[null,null,null,null,null,null,null,null,null,null,"Sep"]
[null,null,null,null,null,null,null,null,null,null,"Oct"]
[null,null,null,null,null,null,null,null,null,null,"Nov"]
[null,null,null,null,null,null,null,null,null,null,"Dec"]
[null,null,null,null,null,null,null,null,null,null,"Annual",{"$f":"AVERAGE(L67:L78)","v":{"$error":"#DIV/0!"}},{"$f":"MAX(M67:M78)","v":0},{"$f":"AVERAGE(N67:N78)","v":{"$error":"#DIV/0!"}},{"$f":"MAX(O67:O78)","v":0}]

{"sheet":"NOx","index":16,"n_rows":79,"n_cols":17,"rows_kept":79,"cut":false,"hidden":false,"merged":[[3,16,7,18],[9,16,11,18],[12,16,15,18],[66,9,78,9],[4,1,4,3],[4,4,4,6],[4,9,4,14],[6,9,18,9],[21,9,33,9],[36,9,48,9],[47,0,47,6],[48,0,51,6],[51,9,63,9],[18,4,18,6]]}
[{"$f":"+'Cover Page'!$B$29","v":"Annual Performance Report 2025"},null,null,null,{"$f":"+'Cover Page'!$B$33","v":"Kent Enviropower Limited"}]
[]
["Monitoring of Oxides of Nitrogen emissions",null,null,"Whole Installation",null,null,"See  Notes in Cell Q3",null,null,{"$f":"+A3","v":"Monitoring of Oxides of Nitrogen emissions"},null,null,null,"Per Combustion Line",null,null,"Notes:"]
[null,null,null,null,null,null,null,null,null,null,null,null,null,null,null,null,"User to add logic to complete Whole installation, Table A5:G18. From the data in Per Combustion Line, Table J6:O79, subject to No. of lines installed"]
[{"$f":"+'Cover Page'!C39","v":2025},"1/2 Hourly Reference Periods",null,null,"Daily Reference Periods"]
["mg/Nm3","1/2 hourly NOx ELV","Monthly mean of half-hourly averages","Highest half- hourly average","Daily NOx ELV","Monthly mean of  daily averages","Highest daily average",null,null,{"$f":"+A5","v":2025},"mg/Nm3","Monthly mean of half-hourly averages","Highest half- hourly average","Monthly mean of  daily averages","Highest daily average"]
["Jan",400,{"$f":"AVERAGE(L7,L22,L37)","v":112.75778078859805},{"$f":"AVERAGE(M7,M22,M37)","v":209.85587565104166},180,{"$f":"AVERAGE(N7,N22,N37)","v":112.52779736042542},{"$f":"AVERAGE(O7,O22,O37)","v":138.51841227213541},null,null,"A1","Jan",104.51115936874062,186.01712036132813,104.5111586047757,124.05645751953125]
["Feb",400,{"$f":"AVERAGE(L8,L23,L38)","v":115.70095078885906},229.42439270019531,180,{"$f":"AVERAGE(N8,N23,N38)","v":115.33671786674699},145.10605621337891,null,null,null,"Feb",110.03834670310796,227.44158935546875,109.98148756760817,119.45909881591797]
["Mar",400,{"$f":"AVERAGE(L9,L24,L39)","v":121.17628159864995},209.89007059733072,180,{"$f":"AVERAGE(N9,N24,N39)","v":120.85640972961873},146.53934733072916,null,null,null,"Mar",124.30372735140419,259.36248779296875,124.08241953168597,161.16557312011719,null,"Whole Installation table A5:G18:"]
["Apr",400,{"$f":"AVERAGE(L10,L25,L40)","v":136.07341255943879},214.45021057128906,180,{"$f":"AVERAGE(N10,N25,N40)","v":135.14154295447278},152.23954264322916,null,null,null,"Apr",133.97231421284116,210.04554748535156,133.81700736597963,143.15646362304688,null,"Mean: for 1/2 hourly and daily periods calculate mean of values across all operational combustion lines for the month"]
["May",400,{"$f":"AVERAGE(L11,L26,L41)","v":135.53774457921182},210.03384908040366,180,{"$f":"AVERAGE(N11,N26,N41)","v":135.54174165896617},160.30206298828125,null,null,null,"May",143.05972694068828,213.18537902832031,143.05972511537612,158.29086303710938]
["Jun",400,{"$f":"AVERAGE(L12,L27,L42)","v":141.07168110364893},217.17225138346353,180,{"$f":"AVERAGE(N12,N27,N42)","v":141.27267445532311},165.27001444498697,null,null,null,"Jun",144.47339790486538,208.00546264648438,144.78425870622908,165.53181457519531]
["Jul",400,{"$f":"AVERAGE(L13,L28,L43)","v":140.93748987215724},293.18538411458331,180,{"$f":"AVERAGE(N13,N28,N43)","v":140.11222276659655},159.12152099609375,null,null,null,"Jul",142.85206622395137,250.994384765625,142.51444244384766,156.59718322753906,null,"Maximum: for 1/2 hourly and daily periods use the highest value across all operational combustion lines for the month"]
["Aug",400,{"$f":"AVERAGE(L14,L29,L44)","v":144.72187888553296},232.20583089192709,180,{"$f":"AVERAGE(N14,N29,N44)","v":144.9118363640894},165.21943155924478,null,null,null,"Aug",148.22790985652378,219.20655822753906,147.6617818761755,165.48191833496094]
["Sep",400,{"$f":"AVERAGE(L15,L30,L45)","v":143.44794213351909},269.0238037109375,180,{"$f":"AVERAGE(N15,N30,N45)","v":142.83149554430148},162.79092915852866,null,null,null,"Sep",143.05049777610503,313.89761352539063,143.15893866799095,166.83119201660156]
["Oct",400,{"$f":"AVERAGE(L16,L31,L46)","v":137.14759653345808},209.54293314615884,180,{"$f":"AVERAGE(N16,N31,N46)","v":137.11737534454159},161.38532511393228,null,null,null,"Oct",121.04314468086781,210.46725463867188,120.37686824798584,157.24766540527344]
["Nov",400,{"$f":"AVERAGE(L17,L32,L47)","v":138.25317721829072},263.22028605143231,180,{"$f":"AVERAGE(N17,N32,N47)","v":137.46682886134812},162.07605997721353,null,null,null,"Nov",140.09014669041724,313.84213256835938,138.05409762733862,171.66960144042969]
["Dec",400,{"$f":"AVERAGE(L18,L33,L48)","v":147.71174534679199},239.88293965657553,180,{"$f":"AVERAGE(N18,N33,N48)","v":147.69022274587033},163.17136637369791,null,null,null,"Dec",157.10478062732281,248.58462524414063,157.33579338921442,166.41769409179688]
[null,null,null,null,null,null,null,null,null,null,"Annual",{"$f":"AVERAGE(L7:L18)","v":134.39393486140295},{"$f":"MAX(M7:M18)","v":313.89761352539063},{"$f":"AVERAGE(N7:N18)","v":134.11149826201731},{"$f":"MAX(O7:O18)","v":171.66960144042969}]
[]
[null,null,null,null,null,null,null,null,null,{"$f":"+A5","v":2025},"mg/Nm3","Monthly mean of half-hourly averages","Highest half- hourly average","Monthly mean of  daily averages","Highest daily average"]
[null,null,null,null,null,null,null,null,null,"A2","Jan",116.56615590667045,207.79481506347656,115.94511314060377,134.43775939941406]
[null,null,null,null,null,null,null,null,null,null,"Feb",128.96334058556619,233.28678894042969,128.68677694147283,155.68310546875]
[null,null,null,null,null,null,null,null,null,null,"Mar",127.95277361105417,200.19059753417969,127.83222814706656,149.90463256835938]
[null,null,null,null,null,null,null,null,null,null,"Apr",147.99739182184612,214.16593933105469,147.61371331465872,165.22323608398438]
[null,null,null,null,null,null,null,null,null,null,"May",145.46420387257572,218.08012390136719,145.4761973063151,166.62248229980469]
[null,null,null,null,null,null,null,null,null,null,"Jun",149.79189915022826,198.80569458007813,149.68629547119141,165.14595031738281]
[null,null,null,null,null,null,null,null,null,null,"Jul",146.00400798179803,304.30706787109375,143.86582981456411,169.21287536621094]
[null,null,null,null,null,null,null,null,null,null,"Aug",150.07603245422069,219.78202819824219,150.32484804350753,167.57736206054688]
[null,null,null,null,null,null,null,null,null,null,"Sep",160.11709032560648,289.717529296875,158.16622009277344,171.85075378417969]
[null,null,null,null,null,null,null,null,null,null,"Oct",158.91602535757502,219.80972290039063,159.4787995474679,169.84632873535156]
[null,null,null,null,null,null,null,null,null,null,"Nov",151.85533095215632,239.350341796875,151.53233459472656,163.06991577148438]
[null,null,null,null,null,null,null,null,null,null,"Dec",151.07180996672699,245.73463439941406,150.77622985839844,165.28787231445313]
[null,null,null,null,null,null,null,null,null,null,"Annual",{"$f":"AVERAGE(L22:L33)","v":144.56467183216873},{"$f":"MAX(M22:M33)","v":304.30706787109375},{"$f":"AVERAGE(N22:N33)","v":144.11538218939555},{"$f":"MAX(O22:O33)","v":171.85075378417969}]
[]
[null,null,null,null,null,null,null,null,null,{"$f":"+A5","v":2025},"mg/Nm3","Monthly mean of half-hourly averages","Highest half- hourly average","Monthly mean of  daily averages","Highest daily average"]
[null,null,null,null,null,null,null,null,null,"A3","Jan",117.19602709038313,235.75569152832031,117.12712033589681,157.06101989746094]
[null,null,null,null,null,null,null,null,null,null,"Feb",108.10116507790305,227.5447998046875,107.34188909115998,160.17596435546875]
[null,null,null,null,null,null,null,null,null,null,"Mar",111.27234383349149,170.11712646484375,110.65458151010367,128.54783630371094]
[null,null,null,null,null,null,null,null,null,null,"Apr",126.25053164362907,219.13914489746094,123.99390818277995,148.33892822265625]
[null,null,null,null,null,null,null,null,null,null,"May",118.08930292437154,198.83604431152344,118.08930255520728,155.99284362792969]
[null,null,null,null,null,null,null,null,null,null,"Jun",128.94974625585314,244.70559692382813,129.3474691885489,165.13227844238281]
[null,null,null,null,null,null,null,null,null,null,"Jul",133.95639541072231,324.25469970703125,133.9563960413779,151.55450439453125]
[null,null,null,null,null,null,null,null,null,null,"Aug",135.8616943458544,257.62890625,136.74887917258522,162.59901428222656]
[null,null,null,null,null,null,null,null,null,null,"Sep",127.17623829884572,203.45626831054688,127.16932787214007,149.69084167480469]
[null,null,null,null,null,null,null,null,null,null,"Oct",131.48361956193142,198.35182189941406,131.49645823817099,157.06198120117188]
[null,null,null,null,null,null,null,null,null,null,"Nov",122.81405401229858,236.4683837890625,122.81405436197916,151.48866271972656]
["Comments :",null,null,null,null,null,null,null,null,null,"Dec",134.95864544632613,225.32955932617188,134.95864498999811,157.80853271484375]
["N/A",null,null,null,null,null,null,null,null,null,"Annual",{"$f":"AVERAGE(L37:L48)","v":124.67581365846748},{"$f":"MAX(M37:M48)","v":324.25469970703125},{"$f":"AVERAGE(N37:N48)","v":124.47483596166232},{"$f":"MAX(O37:O48)","v":165.13227844238281}]
[]
[null,null,null,null,null,null,null,null,null,{"$f":"+A5","v":2025},"mg/Nm3","Monthly mean of half-hourly averages","Highest half- hourly average","Monthly mean of  daily averages","Highest daily average"]
[null,null,null,null,null,null,null,null,null,"A4","Jan"]
[null,null,null,null,null,null,null,null,null,null,"Feb"]
[null,null,null,null,null,null,null,null,null,null,"Mar"]
[null,null,null,null,null,null,null,null,null,null,"Apr"]
[null,null,null,null,null,null,null,null,null,null,"May"]
[null,null,null,null,null,null,null,null,null,null,"Jun"]
[null,null,null,null,null,null,null,null,null,null,"Jul"]
[null,null,null,null,null,null,null,null,null,null,"Aug"]
[null,null,null,null,null,null,null,null,null,null,"Sep"]
[null,null,null,null,null,null,null,null,null,null,"Oct"]
[null,null,null,null,null,null,null,null,null,null,"Nov"]
[null,null,null,null,null,null,null,null,null,null,"Dec"]
[null,null,null,null,null,null,null,null,null,null,"Annual",{"$f":"AVERAGE(L52:L63)","v":{"$error":"#DIV/0!"}},{"$f":"MAX(M52:M63)","v":0},{"$f":"AVERAGE(N52:N63)","v":{"$error":"#DIV/0!"}},{"$f":"MAX(O52:O63)","v":0}]
[]
[null,null,null,null,null,null,null,null,null,{"$f":"+A5","v":2025},"mg/Nm3","Monthly mean of half-hourly averages","Highest half- hourly average","Monthly mean of  daily averages","Highest daily average"]
[null,null,null,null,null,null,null,null,null,"A5","Jan"]
[null,null,null,null,null,null,null,null,null,null,"Feb"]
[null,null,null,null,null,null,null,null,null,null,"Mar"]
[null,null,null,null,null,null,null,null,null,null,"Apr"]
[null,null,null,null,null,null,null,null,null,null,"May"]
[null,null,null,null,null,null,null,null,null,null,"Jun"]
[null,null,null,null,null,null,null,null,null,null,"Jul"]
[null,null,null,null,null,null,null,null,null,null,"Aug"]
[null,null,null,null,null,null,null,null,null,null,"Sep"]
[null,null,null,null,null,null,null,null,null,null,"Oct"]
[null,null,null,null,null,null,null,null,null,null,"Nov"]
[null,null,null,null,null,null,null,null,null,null,"Dec"]
[null,null,null,null,null,null,null,null,null,null,"Annual",{"$f":"AVERAGE(L67:L78)","v":{"$error":"#DIV/0!"}},{"$f":"MAX(M67:M78)","v":0},{"$f":"AVERAGE(N67:N78)","v":{"$error":"#DIV/0!"}},{"$f":"MAX(O67:O78)","v":0}]

{"sheet":"TOC","index":17,"n_rows":79,"n_cols":17,"rows_kept":79,"cut":false,"hidden":false,"merged":[[3,16,7,18],[9,16,11,18],[12,16,15,18],[66,9,78,9],[4,1,4,3],[4,4,4,6],[4,9,4,14],[6,9,18,9],[21,9,33,9],[36,9,48,9],[47,0,47,6],[48,0,51,6],[51,9,63,9]]}
[{"$f":"+'Cover Page'!$B$29","v":"Annual Performance Report 2025"},null,null,null,{"$f":"+'Cover Page'!$B$33","v":"Kent Enviropower Limited"}]
[]
["Monitoring of Total organic carbon emissions",null,null,"Whole Installation",null,null,"See  Notes in Cell Q3",null,null,{"$f":"+A3","v":"Monitoring of Total organic carbon emissions"},null,null,null,"Per Combustion Line",null,null,"Notes:"]
[null,null,null,null,null,null,null,null,null,null,null,null,null,null,null,null,"User to add logic to complete Whole installation, Table A5:G18. From the data in Per Combustion Line, Table J6:O79, subject to No. of lines installed"]
[{"$f":"+'Cover Page'!C39","v":2025},"1/2 Hourly Reference Periods",null,null,"Daily Reference Periods"]
["mg/Nm3","1/2 hourly TOC ELV","Monthly mean of half-hourly averages","Highest half- hourly average","Daily TOC ELV","Monthly mean of  daily averages","Highest daily average",null,null,{"$f":"+A5","v":2025},"mg/Nm3","Monthly mean of half-hourly averages","Highest half- hourly average","Monthly mean of  daily averages","Highest daily average"]
["Jan",10,{"$f":"AVERAGE(L7,L22,L37)","v":0.33376276776887831},{"$f":"AVERAGE(M7,M22,M37)","v":21.351180553436279},10,{"$f":"AVERAGE(N7,N22,N37)","v":0.33004166170790994},{"$f":"AVERAGE(O7,O22,O37)","v":0.77921134233474731},null,null,"A1","Jan",0.27588096026376313,42.163265228271484,0.27574274376515417,1.190060019493103]
["Feb",10,{"$f":"AVERAGE(L8,L23,L38)","v":0.33824350731060687},22.721106211344402,10,{"$f":"AVERAGE(N8,N23,N38)","v":0.33175921678207826},1.1307426691055298,null,null,null,"Feb",0.25081718230201294,19.992250442504883,0.25095219107774586,0.89829397201538086]
["Mar",10,{"$f":"AVERAGE(L9,L24,L39)","v":0.36836774159379831},23.337725480397541,10,{"$f":"AVERAGE(N9,N24,N39)","v":0.35647783530773697},0.79701932271321618,null,null,null,"Mar",0.32335442622664057,44.884788513183594,0.29912189128143446,1.2326799631118774,null,"Whole Installation table A5:G18:"]
["Apr",10,{"$f":"AVERAGE(L10,L25,L40)","v":0.31380183059762795},7.487860282262166,10,{"$f":"AVERAGE(N10,N25,N40)","v":0.30289754945980873},0.51294300953547156,null,null,null,"Apr",0.29912846678178551,7.2468581199645996,0.29894105070515681,0.52652102708816528,null,"Mean: for 1/2 hourly and daily periods calculate mean of values across all operational combustion lines for the month"]
["May",10,{"$f":"AVERAGE(L11,L26,L41)","v":0.33391864360104967},23.346313794453938,10,{"$f":"AVERAGE(N11,N26,N41)","v":0.33147076365661449},1.0671833157539368,null,null,null,"May",0.34980016963816779,14.360651969909668,0.34979493435352077,1.0139729976654053]
["Jun",10,{"$f":"AVERAGE(L12,L27,L42)","v":0.44322079026202171},79.090980529785156,10,{"$f":"AVERAGE(N12,N27,N42)","v":0.34855047485842067},0.73756598432858789,null,null,null,"Jun",0.49340383566841162,199.90444946289063,0.22539778639163291,0.36841800808906555]
["Jul",10,{"$f":"AVERAGE(L13,L28,L43)","v":0.46720021698634379},127.34470041592915,10,{"$f":"AVERAGE(N13,N28,N43)","v":0.3714717288861526},0.76200900475184119,null,null,null,"Jul",0.61550043378471397,360.76873779296875,0.3261012798547745,0.71234697103500366,null,"Maximum: for 1/2 hourly and daily periods use the highest value across all operational combustion lines for the month"]
["Aug",10,{"$f":"AVERAGE(L14,L29,L44)","v":0.54145257794907597},96.462815443674728,10,{"$f":"AVERAGE(N14,N29,N44)","v":0.54018130379048579},2.750237007935842,null,null,null,"Aug",0.68433892751378678,223.38198852539063,0.69757322249589138,5.7767109870910645]
["Sep",10,{"$f":"AVERAGE(L15,L30,L45)","v":0.5068401184553103},23.821876525878906,10,{"$f":"AVERAGE(N15,N30,N45)","v":0.47130590534055389},0.78548131386439002,null,null,null,"Sep",0.56330253953256226,43.970539093017578,0.52002400092103263,1.1831779479980469]
["Oct",10,{"$f":"AVERAGE(L16,L31,L46)","v":0.42192354660108516},14.066584904988607,10,{"$f":"AVERAGE(N16,N31,N46)","v":0.40023809710028263},0.6702823440233866,null,null,null,"Oct",0.51904810716708505,23.672128677368164,0.47674919106066227,0.77596902847290039]
["Nov",10,{"$f":"AVERAGE(L17,L32,L47)","v":0.51845090239512359},14.258308410644531,10,{"$f":"AVERAGE(N17,N32,N47)","v":0.51484891878931149},0.92300134897232056,null,null,null,"Nov",0.63388212869881067,18.906820297241211,0.63236421189810099,1.1472760438919067]
["Dec",10,{"$f":"AVERAGE(L18,L33,L48)","v":0.61480925962096766},17.007353901863098,10,{"$f":"AVERAGE(N18,N33,N48)","v":0.59956728230727141},1.1777039964993794,null,null,null,"Dec",0.67058026143281846,24.706588745117188,0.65628010917592927,1.4679039716720581]
[null,null,null,null,null,null,null,null,null,null,"Annual",{"$f":"AVERAGE(L7:L18)","v":0.47325311991754665},{"$f":"MAX(M7:M18)","v":360.76873779296875},{"$f":"AVERAGE(N7:N18)","v":0.41742021774841964},{"$f":"MAX(O7:O18)","v":5.7767109870910645}]
[]
[null,null,null,null,null,null,null,null,null,{"$f":"+A5","v":2025},"mg/Nm3","Monthly mean of half-hourly averages","Highest half- hourly average","Monthly mean of  daily averages","Highest daily average"]
[null,null,null,null,null,null,null,null,null,"A2","Jan",0.2454204193177657,3.1439309120178223,0.24485478258651236,0.34591299295425415]
[null,null,null,null,null,null,null,null,null,null,"Feb",0.30186233856123218,20.929985046386719,0.2979385019703345,1.1055220365524292]
[null,null,null,null,null,null,null,null,null,null,"Mar",0.32732127952646262,18.762228012084961,0.31468330667569089,0.53274798393249512]
[null,null,null,null,null,null,null,null,null,null,"Apr",0.26543359402641065,11.613211631774902,0.26150326195516083,0.52665799856185913]
[null,null,null,null,null,null,null,null,null,null,"May",0.3302404959128844,47.106212615966797,0.32290209879477821,1.6331169605255127]
[null,null,null,null,null,null,null,null,null,null,"Jun",0.49822295088265917,25.312295913696289,0.48602855920791627,1.2533849477767944]
[null,null,null,null,null,null,null,null,null,null,"Jul",0.42991312462341713,17.622438430786133,0.43212677470662375,0.90953701734542847]
[null,null,null,null,null,null,null,null,null,null,"Aug",0.54212286238538798,58.214324951171875,0.52657127894204236,1.8646490573883057]
[null,null,null,null,null,null,null,null,null,null,"Sep",0.5606987587842629,24.766376495361328,0.5050650969147682,0.6829800009727478]
[null,null,null,null,null,null,null,null,null,null,"Oct",0.31866734193865826,9.9828119277954102,0.2959966462637697,0.57885599136352539]
[null,null,null,null,null,null,null,null,null,null,"Nov",0.46319026553366416,13.271103858947754,0.45390227913856507,0.95205599069595337]
[null,null,null,null,null,null,null,null,null,null,"Dec",0.71241104034088387,24.572360992431641,0.68098525553941724,1.5465550422668457]
[null,null,null,null,null,null,null,null,null,null,"Annual",{"$f":"AVERAGE(L22:L33)","v":0.41629203931947406},{"$f":"MAX(M22:M33)","v":58.214324951171875},{"$f":"AVERAGE(N22:N33)","v":0.40187982022463165},{"$f":"MAX(O22:O33)","v":1.8646490573883057}]
[]
[null,null,null,null,null,null,null,null,null,{"$f":"+A5","v":2025},"mg/Nm3","Monthly mean of half-hourly averages","Highest half- hourly average","Monthly mean of  daily averages","Highest daily average"]
[null,null,null,null,null,null,null,null,null,"A3","Jan",0.47998692372510599,18.746345520019531,0.46952745877206326,0.80166101455688477]
[null,null,null,null,null,null,null,null,null,null,"Feb",0.46205100106857555,27.241083145141602,0.44638695729815442,1.3884119987487793]
[null,null,null,null,null,null,null,null,null,null,"Mar",0.45442751902829176,6.3661599159240723,0.45562830796608556,0.62563002109527588]
[null,null,null,null,null,null,null,null,null,null,"Apr",0.3768434309846877,3.6035110950469971,0.34824833571910857,0.48565000295639038]
[null,null,null,null,null,null,null,null,null,null,"May",0.3217152652520967,8.5720767974853516,0.32171525782154453,0.55445998907089233]
[null,null,null,null,null,null,null,null,null,null,"Jun",0.3380355842349943,12.056196212768555,0.3342250789757128,0.59089499711990356]
[null,null,null,null,null,null,null,null,null,null,"Jul",0.35618709255090003,3.6429250240325928,0.35618713209705966,0.66414302587509155]
[null,null,null,null,null,null,null,null,null,null,"Aug",0.39789594394805322,7.7921328544616699,0.39639940993352368,0.60935097932815552]
[null,null,null,null,null,null,null,null,null,null,"Sep",0.39651905704910556,2.7287139892578125,0.38882861818586079,0.49028599262237549]
[null,null,null,null,null,null,null,null,null,null,"Oct",0.42805519069751236,8.5448141098022461,0.42796845397641581,0.65602201223373413]
[null,null,null,null,null,null,null,null,null,null,"Nov",0.45828031295289595,10.597001075744629,0.45828026533126831,0.66967201232910156]
["Comments :",null,null,null,null,null,null,null,null,null,"Dec",0.4614364770892006,1.7431119680404663,0.46143648220646766,0.51865297555923462]
["N/A",null,null,null,null,null,null,null,null,null,"Annual",{"$f":"AVERAGE(L37:L48)","v":0.41095281654845167},{"$f":"MAX(M37:M48)","v":27.241083145141602},{"$f":"AVERAGE(N37:N48)","v":0.40540264652360541},{"$f":"MAX(O37:O48)","v":1.3884119987487793}]
[]
[null,null,null,null,null,null,null,null,null,{"$f":"+A5","v":2025},"mg/Nm3","Monthly mean of half-hourly averages","Highest half- hourly average","Monthly mean of  daily averages","Highest daily average"]
[null,null,null,null,null,null,null,null,null,"A4","Jan"]
[null,null,null,null,null,null,null,null,null,null,"Feb"]
[null,null,null,null,null,null,null,null,null,null,"Mar"]
[null,null,null,null,null,null,null,null,null,null,"Apr"]
[null,null,null,null,null,null,null,null,null,null,"May"]
[null,null,null,null,null,null,null,null,null,null,"Jun"]
[null,null,null,null,null,null,null,null,null,null,"Jul"]
[null,null,null,null,null,null,null,null,null,null,"Aug"]
[null,null,null,null,null,null,null,null,null,null,"Sep"]
[null,null,null,null,null,null,null,null,null,null,"Oct"]
[null,null,null,null,null,null,null,null,null,null,"Nov"]
[null,null,null,null,null,null,null,null,null,null,"Dec"]
[null,null,null,null,null,null,null,null,null,null,"Annual",{"$f":"AVERAGE(L52:L63)","v":{"$error":"#DIV/0!"}},{"$f":"MAX(M52:M63)","v":0},{"$f":"AVERAGE(N52:N63)","v":{"$error":"#DIV/0!"}},{"$f":"MAX(O52:O63)","v":0}]
[]
[null,null,null,null,null,null,null,null,null,{"$f":"+A5","v":2025},"mg/Nm3","Monthly mean of half-hourly averages","Highest half- hourly average","Monthly mean of  daily averages","Highest daily average"]
[null,null,null,null,null,null,null,null,null,"A5","Jan"]
[null,null,null,null,null,null,null,null,null,null,"Feb"]
[null,null,null,null,null,null,null,null,null,null,"Mar"]
[null,null,null,null,null,null,null,null,null,null,"Apr"]
[null,null,null,null,null,null,null,null,null,null,"May"]
[null,null,null,null,null,null,null,null,null,null,"Jun"]
[null,null,null,null,null,null,null,null,null,null,"Jul"]
[null,null,null,null,null,null,null,null,null,null,"Aug"]
[null,null,null,null,null,null,null,null,null,null,"Sep"]
[null,null,null,null,null,null,null,null,null,null,"Oct"]
[null,null,null,null,null,null,null,null,null,null,"Nov"]
[null,null,null,null,null,null,null,null,null,null,"Dec"]
[null,null,null,null,null,null,null,null,null,null,"Annual",{"$f":"AVERAGE(L67:L78)","v":{"$error":"#DIV/0!"}},{"$f":"MAX(M67:M78)","v":0},{"$f":"AVERAGE(N67:N78)","v":{"$error":"#DIV/0!"}},{"$f":"MAX(O67:O78)","v":0}]

{"sheet":"Particulates","index":18,"n_rows":79,"n_cols":17,"rows_kept":79,"cut":false,"hidden":false,"merged":[[4,16,8,18],[10,16,12,18],[13,16,16,18],[66,9,78,9],[4,1,4,3],[4,4,4,6],[4,9,4,14],[6,9,18,9],[21,9,33,9],[36,9,48,9],[47,0,47,6],[48,0,51,6],[51,9,63,9],[18,4,18,6]]}
[{"$f":"+'Cover Page'!$B$29","v":"Annual Performance Report 2025"},null,null,null,{"$f":"+'Cover Page'!$B$33","v":"Kent Enviropower Limited"}]
[]
["Monitoring of Particulate matter emissions",null,null,"Whole Installation",null,null,"See  Notes in Cell Q3",null,null,{"$f":"+A3","v":"Monitoring of Particulate matter emissions"},null,null,null,"Per Combustion Line",null,null,"Notes:"]
[]
[{"$f":"+'Cover Page'!C39","v":2025},"1/2 Hourly Reference Periods",null,null,"Daily Reference Periods",null,null,null,null,null,null,null,null,null,null,null,"User to add logic to complete Whole installation, Table A5:G18. From the data in Per Combustion Line, Table J6:O79, subject to No. of lines installed"]
["mg/Nm3","1/2 hourly PM ELV","Monthly mean of half-hourly averages","Highest half- hourly average","Daily PM ELV","Monthly mean of  daily averages","Highest daily average",null,null,{"$f":"+A5","v":2025},"mg/Nm3","Monthly mean of half-hourly averages","Highest half- hourly average","Monthly mean of  daily averages","Highest daily average"]
["Jan",30,{"$f":"AVERAGE(L7,L22,L37)","v":0.86444946308587234},{"$f":"AVERAGE(M7,M22,M37)","v":1.4724769989649455},5,{"$f":"AVERAGE(N7,N22,N37)","v":0.86262535619351643},{"$f":"AVERAGE(O7,O22,O37)","v":1.0912999709447224},null,null,"A1","Jan",0.86087697439937183,1.3344910144805908,0.86087690630266744,0.8966599702835083]
["Feb",30,{"$f":"AVERAGE(L8,L23,L38)","v":1.0187992692926855},2.7262970606486001,5,{"$f":"AVERAGE(N8,N23,N38)","v":1.0225972314699812},1.5641290148099263,null,null,null,"Feb",0.875105168052422,1.3964109420776367,0.87468257775673497,0.94766700267791748]
["Mar",30,{"$f":"AVERAGE(L9,L24,L39)","v":1.0168001150074895},1.7656392653783162,5,{"$f":"AVERAGE(N9,N24,N39)","v":1.0154676316749482},1.1458160082499187,null,null,null,"Mar",1.1070719030706357,2.2824358940124512,1.1050774689231599,1.2518340349197388]
["Apr",30,{"$f":"AVERAGE(L10,L25,L40)","v":1.4589395141549133},2.903110901514689,5,{"$f":"AVERAGE(N10,N25,N40)","v":1.4608116269808764},2.2531456549962363,null,null,null,"Apr",1.3239075011212225,2.1911289691925049,1.3011447316721867,1.4786449670791626,null,"Whole Installation table A5:G18:"]
["May",30,{"$f":"AVERAGE(L11,L26,L41)","v":1.6987328042807537},3.1542640527089438,5,{"$f":"AVERAGE(N11,N26,N41)","v":1.6982630298556394},2.3417872985204062,null,null,null,"May",1.4374842203112059,2.0796129703521729,1.4374765849882556,1.7004679441452026,null,"Mean: for 1/2 hourly and daily periods calculate mean of values across all operational combustion lines for the month"]
["Jun",30,{"$f":"AVERAGE(L12,L27,L42)","v":1.6866167962304104},4.3130043347676592,5,{"$f":"AVERAGE(N12,N27,N42)","v":1.6849256691983137},2.5108420054117837,null,null,null,"Jun",2.1039300424125651,4.148590087890625,2.1021174703325545,3.3110690116882324]
["Jul",30,{"$f":"AVERAGE(L13,L28,L43)","v":2.17801994613261},5.659339427947998,5,{"$f":"AVERAGE(N13,N28,N43)","v":2.178539962537827},3.3279006481170654,null,null,null,"Jul",2.893591610955228,7.418065071105957,2.9191958904266357,4.0053539276123047]
["Aug",30,{"$f":"AVERAGE(L14,L29,L44)","v":2.3435616980025102},4.6470303535461426,5,{"$f":"AVERAGE(N14,N29,N44)","v":2.33421610342773},3.1271246274312339,null,null,null,"Aug",2.6449721020460131,4.4728422164916992,2.6335306609118425,3.3814339637756348,null,"Maximum: for 1/2 hourly and daily periods use the highest value across all operational combustion lines for the month"]
["Sep",30,{"$f":"AVERAGE(L15,L30,L45)","v":2.5593116254702388},4.4942893981933594,5,{"$f":"AVERAGE(N15,N30,N45)","v":2.5120620936714384},3.3108823299407959,null,null,null,"Sep",2.6654553587258811,4.1067190170288086,2.6217550689523872,3.0788509845733643]
["Oct",30,{"$f":"AVERAGE(L16,L31,L46)","v":2.496872990419821},4.6878046989440918,5,{"$f":"AVERAGE(N16,N31,N46)","v":2.5036542893211413},3.1825526555379233,null,null,null,"Oct",2.2411976585713038,4.1991281509399414,2.2774179354310036,2.8669779300689697]
["Nov",30,{"$f":"AVERAGE(L17,L32,L47)","v":2.1181200368475919},7.1381540298461914,5,{"$f":"AVERAGE(N17,N32,N47)","v":2.1277588879713538},3.7306003570556641,null,null,null,"Nov",2.5436759863815994,8.7583723068237305,2.586386718248066,4.6962060928344727]
["Dec",30,{"$f":"AVERAGE(L18,L33,L48)","v":2.4212610511295494},6.1312673886617022,5,{"$f":"AVERAGE(N18,N33,N48)","v":2.386704320304188},3.2324480215708413,null,null,null,"Dec",2.6811107282089246,6.6977500915527344,2.5849489944952504,3.6018118858337402]
[null,null,null,null,null,null,null,null,null,null,"Annual",{"$f":"AVERAGE(L7:L18)","v":1.9481982711880315},{"$f":"MAX(M7:M18)","v":8.7583723068237305},{"$f":"AVERAGE(N7:N18)","v":1.942050917370062},{"$f":"MAX(O7:O18)","v":4.6962060928344727}]
[]
[null,null,null,null,null,null,null,null,null,{"$f":"+A5","v":2025},"mg/Nm3","Monthly mean of half-hourly averages","Highest half- hourly average","Monthly mean of  daily averages","Highest daily average"]
[null,null,null,null,null,null,null,null,null,"A2","Jan",0.85181926624751581,1.3065309524536133,0.84602117279301514,1.0087779760360718]
[null,null,null,null,null,null,null,null,null,null,"Feb",0.88940793807823582,1.3380370140075684,0.88738067854534497,0.96485000848770142]
[null,null,null,null,null,null,null,null,null,null,"Mar",0.97611456386005602,1.38947594165802,0.97507496522023129,1.0829139947891235]
[null,null,null,null,null,null,null,null,null,null,"Apr",1.2974695131655722,2.1741209030151367,1.3132879451701516,1.8773479461669922]
[null,null,null,null,null,null,null,null,null,null,"May",1.7906894150101662,2.8151650428771973,1.7892877419789632,1.9232399463653564]
[null,null,null,null,null,null,null,null,null,null,"Jun",2.2513834848779761,3.6147580146789551,2.2520982456207275,3.1129670143127441]
[null,null,null,null,null,null,null,null,null,null,"Jul",2.3486636854586891,4.1111721992492676,2.324619472026825,3.3773500919342041]
[null,null,null,null,null,null,null,null,null,null,"Aug",2.5368453567366309,4.165186882019043,2.5334706840843988,3.0274279117584229]
[null,null,null,null,null,null,null,null,null,null,"Sep",3.1199685536950277,5.4602460861206055,3.063582491874695,3.9195840358734131]
[null,null,null,null,null,null,null,null,null,null,"Oct",2.5972927428163723,5.054664134979248,2.5791750379971097,3.227154016494751]
[null,null,null,null,null,null,null,null,null,null,"Nov",2.2991475738048939,9.1025848388671875,2.2853534746170046,3.9271819591522217]
[null,null,null,null,null,null,null,null,null,null,"Dec",2.0221727288583375,4.620509147644043,2.0146642982959748,2.4064850807189941]
[null,null,null,null,null,null,null,null,null,null,"Annual",{"$f":"AVERAGE(L22:L33)","v":1.915081235217456},{"$f":"MAX(M22:M33)","v":9.1025848388671875},{"$f":"AVERAGE(N22:N33)","v":1.9053346840187038},{"$f":"MAX(O22:O33)","v":3.9271819591522217}]
[]
[null,null,null,null,null,null,null,null,null,{"$f":"+A5","v":2025},"mg/Nm3","Monthly mean of half-hourly averages","Highest half- hourly average","Monthly mean of  daily averages","Highest daily average"]
[null,null,null,null,null,null,null,null,null,"A3","Jan",0.88065214861072971,1.7764090299606323,0.8809779894848665,1.3684619665145874]
[null,null,null,null,null,null,null,null,null,null,"Feb",1.2918847017473989,5.4444432258605957,1.3057284381078638,2.7798700332641602]
[null,null,null,null,null,null,null,null,null,null,"Mar",0.96721387809177617,1.6250059604644775,0.96625046088145328,1.1026999950408936]
[null,null,null,null,null,null,null,null,null,null,"Apr",1.7554415281779452,4.3440828323364258,1.768002204100291,3.4034440517425537]
[null,null,null,null,null,null,null,null,null,null,"May",1.8680247775208887,4.5680141448974609,1.8680247625996989,3.4016540050506592]
[null,null,null,null,null,null,null,null,null,null,"Jun",0.70453686140069027,5.1756649017333984,0.70056129164165926,1.108489990234375]
[null,null,null,null,null,null,null,null,null,null,"Jul",1.2918045419839121,5.4487810134887695,1.2918045251600203,2.6009979248046875]
[null,null,null,null,null,null,null,null,null,null,"Aug",1.8488676352248861,5.3030619621276855,1.8356469652869485,2.9725120067596436]
[null,null,null,null,null,null,null,null,null,null,"Sep",1.8925109639898077,3.9159030914306641,1.8508487201872326,2.9342119693756104]
[null,null,null,null,null,null,null,null,null,null,"Oct",2.6521285698717874,4.8096218109130859,2.6543698945353107,3.4535260200500488]
[null,null,null,null,null,null,null,null,null,null,"Nov",1.5115365503562821,3.5535049438476563,1.5115364710489909,2.5684130191802979]
["Comments :",null,null,null,null,null,null,null,null,null,"Dec",2.5604996963213851,7.0755429267883301,2.5604996681213379,3.68904709815979]
["N/A",null,null,null,null,null,null,null,null,null,"Annual",{"$f":"AVERAGE(L37:L48)","v":1.6020918211081243},{"$f":"MAX(M37:M48)","v":7.0755429267883301},{"$f":"AVERAGE(N37:N48)","v":1.5995209492629729},{"$f":"MAX(O37:O48)","v":3.68904709815979}]
[]
[null,null,null,null,null,null,null,null,null,{"$f":"+A5","v":2025},"mg/Nm3","Monthly mean of half-hourly averages","Highest half- hourly average","Monthly mean of  daily averages","Highest daily average"]
[null,null,null,null,null,null,null,null,null,"A4","Jan"]
[null,null,null,null,null,null,null,null,null,null,"Feb"]
[null,null,null,null,null,null,null,null,null,null,"Mar"]
[null,null,null,null,null,null,null,null,null,null,"Apr"]
[null,null,null,null,null,null,null,null,null,null,"May"]
[null,null,null,null,null,null,null,null,null,null,"Jun"]
[null,null,null,null,null,null,null,null,null,null,"Jul"]
[null,null,null,null,null,null,null,null,null,null,"Aug"]
[null,null,null,null,null,null,null,null,null,null,"Sep"]
[null,null,null,null,null,null,null,null,null,null,"Oct"]
[null,null,null,null,null,null,null,null,null,null,"Nov"]
[null,null,null,null,null,null,null,null,null,null,"Dec"]
[null,null,null,null,null,null,null,null,null,null,"Annual",{"$f":"AVERAGE(L52:L63)","v":{"$error":"#DIV/0!"}},{"$f":"MAX(M52:M63)","v":0},{"$f":"AVERAGE(N52:N63)","v":{"$error":"#DIV/0!"}},{"$f":"MAX(O52:O63)","v":0}]
[]
[null,null,null,null,null,null,null,null,null,{"$f":"+A5","v":2025},"mg/Nm3","Monthly mean of half-hourly averages","Highest half- hourly average","Monthly mean of  daily averages","Highest daily average"]
[null,null,null,null,null,null,null,null,null,"A5","Jan"]
[null,null,null,null,null,null,null,null,null,null,"Feb"]
[null,null,null,null,null,null,null,null,null,null,"Mar"]
[null,null,null,null,null,null,null,null,null,null,"Apr"]
[null,null,null,null,null,null,null,null,null,null,"May"]
[null,null,null,null,null,null,null,null,null,null,"Jun"]
[null,null,null,null,null,null,null,null,null,null,"Jul"]
[null,null,null,null,null,null,null,null,null,null,"Aug"]
[null,null,null,null,null,null,null,null,null,null,"Sep"]
[null,null,null,null,null,null,null,null,null,null,"Oct"]
[null,null,null,null,null,null,null,null,null,null,"Nov"]
[null,null,null,null,null,null,null,null,null,null,"Dec"]
[null,null,null,null,null,null,null,null,null,null,"Annual",{"$f":"AVERAGE(L67:L78)","v":{"$error":"#DIV/0!"}},{"$f":"MAX(M67:M78)","v":0},{"$f":"AVERAGE(N67:N78)","v":{"$error":"#DIV/0!"}},{"$f":"MAX(O67:O78)","v":0}]

{"sheet":"CO 0.5 hourly","index":19,"n_rows":82,"n_cols":17,"rows_kept":82,"cut":false,"hidden":false,"merged":[[4,0,5,6],[6,16,10,18],[12,16,14,18],[15,16,18,18],[69,9,81,9],[7,1,7,3],[7,4,7,6],[7,9,7,14],[9,9,21,9],[24,9,36,9],[39,9,51,9],[50,0,50,6],[51,0,54,6],[54,9,66,9]]}
[{"$f":"+'Cover Page'!$B$29","v":"Annual Performance Report 2025"},null,null,null,{"$f":"+'Cover Page'!$B$33","v":"Kent Enviropower Limited"}]
[]
["Monitoring of Carbon Monoxide (half hourly)",null,null,"Whole Installation",null,null,"See  Notes in Cell Q3",null,null,{"$f":"+A3","v":"Monitoring of Carbon Monoxide (half hourly)"},null,null,null,"Per Combustion Line",null,null,"Notes:"]
[]
["Please complete this tab for your plant if you have 1/2 hourly CO ELVs; otherwise, leave it blank and complete the CO 95% 10 min tab"]
[]
[null,null,null,null,null,null,null,null,null,null,null,null,null,null,null,null,"User to add logic to complete Whole installation, Table A5:G18. From the data in Per Combustion Line, Table J6:O79, subject to No. of lines installed"]
[{"$f":"+'Cover Page'!C39","v":2025},"1/2 Hourly Reference Periods",null,null,"Daily Reference Periods"]
["mg/Nm3","1/2 hourly CO ELV","Monthly mean of half-hourly averages","Highest half- hourly average","Daily CO ELV","Monthly mean of  daily averages","Highest daily average",null,null,{"$f":"+A8","v":2025},"mg/Nm3","Monthly mean of half-hourly averages","Highest half- hourly average","Monthly mean of  daily averages","Highest daily average"]
["Jan",100,null,null,50,null,null,null,null,"A1","Jan"]
["Feb",{"$f":"+B10","v":100},null,null,{"$f":"+E10","v":50},null,null,null,null,null,"Feb"]
["Mar",{"$f":"+B11","v":100},null,null,{"$f":"+E11","v":50},null,null,null,null,null,"Mar",null,null,null,null,null,"Whole Installation table A5:G18:"]
["Apr",100,null,null,50,null,null,null,null,null,"Apr",null,null,null,null,null,"Mean: for 1/2 hourly and daily periods calculate mean of values across all operational combustion lines for the month"]
["May",100,null,null,50,null,null,null,null,null,"May"]
["Jun",100,null,null,50,null,null,null,null,null,"Jun"]
["Jul",100,null,null,50,null,null,null,null,null,"Jul",null,null,null,null,null,"Maximum: for 1/2 hourly and daily periods use the highest value across all operational combustion lines for the month"]
["Aug",100,null,null,50,null,null,null,null,null,"Aug"]
["Sep",100,null,null,50,null,null,null,null,null,"Sep"]
["Oct",100,null,null,50,null,null,null,null,null,"Oct"]
["Nov",100,null,null,50,null,null,null,null,null,"Nov"]
["Dec",100,null,null,50,null,null,null,null,null,"Dec"]
[null,null,null,null,null,null,null,null,null,null,"Annual",{"$f":"AVERAGE(L10:L21)","v":{"$error":"#DIV/0!"}},{"$f":"MAX(M10:M21)","v":0},{"$f":"AVERAGE(N10:N21)","v":{"$error":"#DIV/0!"}},{"$f":"MAX(O10:O21)","v":0}]
[]
[null,null,null,null,null,null,null,null,null,{"$f":"+A8","v":2025},"mg/Nm3","Monthly mean of half-hourly averages","Highest half- hourly average","Monthly mean of  daily averages","Highest daily average"]
[null,null,null,null,null,null,null,null,null,"A2","Jan"]
[null,null,null,null,null,null,null,null,null,null,"Feb"]
[null,null,null,null,null,null,null,null,null,null,"Mar"]
[null,null,null,null,null,null,null,null,null,null,"Apr"]
[null,null,null,null,null,null,null,null,null,null,"May"]
[null,null,null,null,null,null,null,null,null,null,"Jun"]
[null,null,null,null,null,null,null,null,null,null,"Jul"]
[null,null,null,null,null,null,null,null,null,null,"Aug"]
[null,null,null,null,null,null,null,null,null,null,"Sep"]
[null,null,null,null,null,null,null,null,null,null,"Oct"]
[null,null,null,null,null,null,null,null,null,null,"Nov"]
[null,null,null,null,null,null,null,null,null,null,"Dec"]
[null,null,null,null,null,null,null,null,null,null,"Annual",{"$f":"AVERAGE(L25:L36)","v":{"$error":"#DIV/0!"}},{"$f":"MAX(M25:M36)","v":0},{"$f":"AVERAGE(N25:N36)","v":{"$error":"#DIV/0!"}},{"$f":"MAX(O25:O36)","v":0}]
[]
[null,null,null,null,null,null,null,null,null,{"$f":"+A8","v":2025},"mg/Nm3","Monthly mean of half-hourly averages","Highest half- hourly average","Monthly mean of  daily averages","Highest daily average"]
[null,null,null,null,null,null,null,null,null,"A3","Jan"]
[null,null,null,null,null,null,null,null,null,null,"Feb"]
[null,null,null,null,null,null,null,null,null,null,"Mar"]
[null,null,null,null,null,null,null,null,null,null,"Apr"]
[null,null,null,null,null,null,null,null,null,null,"May"]
[null,null,null,null,null,null,null,null,null,null,"Jun"]
[null,null,null,null,null,null,null,null,null,null,"Jul"]
[null,null,null,null,null,null,null,null,null,null,"Aug"]
[null,null,null,null,null,null,null,null,null,null,"Sep"]
[null,null,null,null,null,null,null,null,null,null,"Oct"]
[null,null,null,null,null,null,null,null,null,null,"Nov"]
["Comments :",null,null,null,null,null,null,null,null,null,"Dec"]
["N/A CO half hour is not used ",null,null,null,null,null,null,null,null,null,"Annual",{"$f":"AVERAGE(L40:L51)","v":{"$error":"#DIV/0!"}},{"$f":"MAX(M40:M51)","v":0},{"$f":"AVERAGE(N40:N51)","v":{"$error":"#DIV/0!"}},{"$f":"MAX(O40:O51)","v":0}]
[]
[null,null,null,null,null,null,null,null,null,{"$f":"+A8","v":2025},"mg/Nm3","Monthly mean of half-hourly averages","Highest half- hourly average","Monthly mean of  daily averages","Highest daily average"]
[null,null,null,null,null,null,null,null,null,"A4","Jan"]
[null,null,null,null,null,null,null,null,null,null,"Feb"]
[null,null,null,null,null,null,null,null,null,null,"Mar"]
[null,null,null,null,null,null,null,null,null,null,"Apr"]
[null,null,null,null,null,null,null,null,null,null,"May"]
[null,null,null,null,null,null,null,null,null,null,"Jun"]
[null,null,null,null,null,null,null,null,null,null,"Jul"]
[null,null,null,null,null,null,null,null,null,null,"Aug"]
[null,null,null,null,null,null,null,null,null,null,"Sep"]
[null,null,null,null,null,null,null,null,null,null,"Oct"]
[null,null,null,null,null,null,null,null,null,null,"Nov"]
[null,null,null,null,null,null,null,null,null,null,"Dec"]
[null,null,null,null,null,null,null,null,null,null,"Annual",{"$f":"AVERAGE(L55:L66)","v":{"$error":"#DIV/0!"}},{"$f":"MAX(M55:M66)","v":0},{"$f":"AVERAGE(N55:N66)","v":{"$error":"#DIV/0!"}},{"$f":"MAX(O55:O66)","v":0}]
[]
[null,null,null,null,null,null,null,null,null,{"$f":"+A8","v":2025},"mg/Nm3","Monthly mean of half-hourly averages","Highest half- hourly average","Monthly mean of  daily averages","Highest daily average"]
[null,null,null,null,null,null,null,null,null,"A5","Jan"]
[null,null,null,null,null,null,null,null,null,null,"Feb"]
[null,null,null,null,null,null,null,null,null,null,"Mar"]
[null,null,null,null,null,null,null,null,null,null,"Apr"]
[null,null,null,null,null,null,null,null,null,null,"May"]
[null,null,null,null,null,null,null,null,null,null,"Jun"]
[null,null,null,null,null,null,null,null,null,null,"Jul"]
[null,null,null,null,null,null,null,null,null,null,"Aug"]
[null,null,null,null,null,null,null,null,null,null,"Sep"]
[null,null,null,null,null,null,null,null,null,null,"Oct"]
[null,null,null,null,null,null,null,null,null,null,"Nov"]
[null,null,null,null,null,null,null,null,null,null,"Dec"]
[null,null,null,null,null,null,null,null,null,null,"Annual",{"$f":"AVERAGE(L70:L81)","v":{"$error":"#DIV/0!"}},{"$f":"MAX(M70:M81)","v":0},{"$f":"AVERAGE(N70:N81)","v":{"$error":"#DIV/0!"}},{"$f":"MAX(O70:O81)","v":0}]

{"sheet":"CO 95% 10 min","index":20,"n_rows":82,"n_cols":19,"rows_kept":82,"cut":false,"hidden":false,"merged":[[4,0,5,7],[6,18,10,20],[12,18,14,20],[15,18,18,20],[69,10,81,10],[7,1,7,4],[7,5,7,7],[7,10,7,16],[9,10,21,10],[24,10,36,10],[39,10,51,10],[50,0,50,7],[51,0,54,7],[54,10,66,10]]}
[{"$f":"+'Cover Page'!$B$29","v":"Annual Performance Report 2025"},null,null,null,{"$f":"+'Cover Page'!$B$33","v":"Kent Enviropower Limited"}]
[]
["Monitoring of Carbon Monoxide (10-minute avg)",null,null,null,"Whole Installation",null,null,"See  Notes in Cell S3",null,{"$f":"+A3","v":"Monitoring of Carbon Monoxide (10-minute avg)"},null,null,null,null,"Per Combustion Line",null,"Notes:",null,"Notes:"]
[]
["Please complete this tab for your plant if you have 10-minute average CO ELVs; otherwise, leave it blank and complete the CO 0.5 hourly tab"]
[]
[null,null,null,null,null,null,null,null,null,null,null,null,null,null,null,null,null,null,"User to add logic to complete Whole installation, Table A5:H18. From the data in Per Combustion Line, Table K6:Q79, subject to No. of lines installed"]
[{"$f":"+'Cover Page'!C39","v":2025},"10-minute Reference Periods",null,null,null,"Daily Reference Periods"]
["mg/Nm3","95%ile 10-min avg CO ELV","Highest daily 95%ile 10-min average","Monthly mean of 10-min averages","Highest 10-min average","Daily CO ELV","Monthly mean of  daily averages","Highest daily average",null,null,{"$f":"+A8","v":2025},"mg/Nm3","Highest daily 95%ile 10-min average","Monthly mean of 10-min averages","Highest 10-min average","Monthly mean of  daily averages","Highest daily average"]
["Jan",150,{"$f":"AVERAGE(M10,M25,M40)","v":5.4345345894495649},{"$f":"AVERAGE(N10,N25,N40)","v":2.4998972966322746},{"$f":"AVERAGE(O10,O25,O40)","v":1277.8178304036458},50,{"$f":"AVERAGE(P10,P25,P40)","v":2.4803418746880328},{"$f":"AVERAGE(Q10,Q25,Q40)","v":9.3165305455525722},null,null,"A1","Jan",0.50189197063446045,1.3666900914720377,1045.4755859375,1.3664123837595745,7.559016227722168]
["Feb",{"$f":"+B10","v":150},{"$f":"AVERAGE(M11,M26,M41)","v":6.8208319544792175},2.5741780768253117,662.07472737630212,{"$f":"+F10","v":50},{"$f":"AVERAGE(P11,P26,P41)","v":2.4498547560966628},8.0363764762878418,null,null,null,"Feb",0.66451197862625122,0.82559423810446297,360.43463134765625,0.79890319268004251,3.3575420379638672]
["Mar",{"$f":"+B11","v":150},{"$f":"AVERAGE(M12,M27,M42)","v":6.638285954793294},3.5380623632097716,2471.0444539388022,{"$f":"+F11","v":50},{"$f":"AVERAGE(P12,P27,P42)","v":2.9391027632691373},16.611211458841961,null,null,null,"Mar",1.0034270286560059,3.516147750067713,5005.1650390625,2.0792307702026198,29.382648468017578,null,"Whole Installation table A5:H18:"]
["Apr",150,{"$f":"AVERAGE(M13,M28,M43)","v":3.845564285914103},2.1423118447748011,537.73984781901038,50,{"$f":"AVERAGE(P13,P28,P43)","v":1.9122746211438502},8.4383948644002285,null,null,null,"Apr",3.4714710712432861,1.6355966589703426,383.2735595703125,1.5546320700331737,4.8833532333374023,null,"Mean: for 10-min and daily periods use average of all operational combustion lines."]
["May",150,{"$f":"AVERAGE(M14,M29,M44)","v":9.6033838589986171},3.5839820258527761,972.19712320963538,50,{"$f":"AVERAGE(P14,P29,P44)","v":3.4866327898563498},18.191382090250652,null,null,null,"May",14.030636787414551,4.1076898060057667,878.02264404296875,4.1076898108867388,19.051620483398438]
["Jun",150,{"$f":"AVERAGE(M15,M30,M45)","v":19.547916253407795},6.598220536765564,4816.8440144856768,50,{"$f":"AVERAGE(P15,P30,P45)","v":4.9341866799676053},12.945275783538818,null,null,null,"Jun",5.0403599739074707,7.0349366883809168,12053.1923828125,2.2972117465188995,5.4696707725524902]
["Jul",150,{"$f":"AVERAGE(M16,M31,M46)","v":17.485126813252766},6.5509508846808648,5202.1009623209638,50,{"$f":"AVERAGE(P16,P31,P46)","v":5.0121584015662251},14.985390663146973,null,null,null,"Jul",10.427796363830566,8.2241126144708989,13852.3994140625,4.0402755910158161,15.777132987976074,null,"Maximum: for 10-min and daily periods use the highest of all operational combustion lines in any month."]
["Aug",150,{"$f":"AVERAGE(M17,M32,M47)","v":22.10940710703532},7.8867576487274134,3125.1812744140625,50,{"$f":"AVERAGE(P17,P32,P47)","v":7.8096697680498464},32.233097076416016,null,null,null,"Aug",15.291486740112305,11.054345555491725,5849.2919921875,11.01826644550871,58.635723114013672]
["Sep",150,{"$f":"AVERAGE(M18,M33,M48)","v":29.731175104777019},9.989139012772613,2714.905558268229,50,{"$f":"AVERAGE(P18,P33,P48)","v":8.3466110597097174},20.687703132629395,null,null,null,"Sep",16.964160919189453,13.909310021650546,6262.11328125,10.617971750822933,35.012042999267578]
["Oct",150,{"$f":"AVERAGE(M19,M34,M49)","v":24.288514931996662},6.944172697185504,869.3741556803385,50,{"$f":"AVERAGE(P19,P34,P49)","v":6.1792992062054113},15.195568879445394,null,null,null,"Oct",22.430265426635742,9.0150183218911017,1179.6702880859375,7.5147592276334763,17.319671630859375]
["Nov",150,{"$f":"AVERAGE(M20,M35,M50)","v":12.608517487843832},6.8442746743950318,1516.3553873697917,50,{"$f":"AVERAGE(P20,P35,P50)","v":6.8048798733705667},18.172545115152996,null,null,null,"Nov",12.031205177307129,7.9351263115469335,2378.491943359375,8.0271329189601701,24.01409912109375]
["Dec",150,{"$f":"AVERAGE(M21,M36,M51)","v":26.41685922940572},9.2076942812407108,2084.0861612955728,50,{"$f":"AVERAGE(P21,P36,P51)","v":8.7573966970604182},27.512071768442791,null,null,null,"Dec",16.212690353393555,10.817313982926271,4273.11181640625,10.687475160316184,45.850383758544922]
[null,null,null,null,null,null,null,null,null,null,null,"Annual",6.9149088859558105,null,13852.3994140625,5.136976640788296,58.635723114013672]
[]
[null,null,null,null,null,null,null,null,null,null,{"$f":"+A8","v":2025},"mg/Nm3","Highest daily 95%ile 10-min average","Monthly mean of 10-min averages","Highest 10-min average","Monthly mean of  daily averages","Highest daily average"]
[null,null,null,null,null,null,null,null,null,null,"A2","Jan",3.9812800884246826,2.2925792314936428,818.8531494140625,2.2937508614166924,6.0602998733520508]
[null,null,null,null,null,null,null,null,null,null,null,"Feb",3.4512240886688232,2.9848518992453346,813.02850341796875,2.9288124794309791,7.7273440361022949]
[null,null,null,null,null,null,null,null,null,null,null,"Mar",7.5049309730529785,3.7342932713541916,1591.1165771484375,3.3142304403277545,13.038542747497559]
[null,null,null,null,null,null,null,null,null,null,null,"Apr",3.8067870140075684,2.8523131100945838,916.32769775390625,2.7335717919233598,12.790731430053711]
[null,null,null,null,null,null,null,null,null,null,null,"May",4.337069034576416,3.8785183026979659,1359.7506103515625,3.5864706030736366,24.884490966796875]
[null,null,null,null,null,null,null,null,null,null,null,"Jun",40.421619415283203,9.3179335537720025,1820.1241455078125,9.1835313224792472,22.195289611816406]
[null,null,null,null,null,null,null,null,null,null,null,"Jul",32.557083129882813,8.5424622763240539,1391.09130859375,8.1091863242062647,16.178606033325195]
[null,null,null,null,null,null,null,null,null,null,null,"Aug",37.667144775390625,8.1883762358199821,1168.2149658203125,7.9212217074016049,20.699914932250977]
[null,null,null,null,null,null,null,null,null,null,null,"Sep",55.593391418457031,12.494675735744751,1147.585205078125,10.851255798339844,17.075389862060547]
[null,null,null,null,null,null,null,null,null,null,null,"Oct",43.884849548339844,9.5308908128487406,948.9990234375,8.7345996754510065,20.495534896850586]
[null,null,null,null,null,null,null,null,null,null,null,"Nov",24.59135627746582,10.910364515371089,1314.63818359375,10.700173482894897,21.659004211425781]
[null,null,null,null,null,null,null,null,null,null,null,"Dec",62.226627349853516,15.791370584208682,1723.5042724609375,14.570405542850494,34.010364532470703]
[null,null,null,null,null,null,null,null,null,null,null,"Annual",{"$f":"AVERAGE(M25:M36)","v":26.668613592783611},null,{"$f":"MAX(O25:O36)","v":1820.1241455078125},{"$f":"AVERAGE(P25:P36)","v":7.0772675024829823},{"$f":"MAX(Q25:Q36)","v":34.010364532470703}]
[]
[null,null,null,null,null,null,null,null,null,null,{"$f":"+A8","v":2025},"mg/Nm3","Highest daily 95%ile 10-min average","Monthly mean of 10-min averages","Highest 10-min average","Monthly mean of  daily averages","Highest daily average"]
[null,null,null,null,null,null,null,null,null,null,"A3","Jan",11.820431709289551,3.8404225669311427,1969.124755859375,3.7808623788878322,14.330275535583496]
[null,null,null,null,null,null,null,null,null,null,null,"Feb",16.346759796142578,3.9120880931261373,812.76104736328125,3.621848596178967,13.024243354797363]
[null,null,null,null,null,null,null,null,null,null,null,"Mar",11.406499862670898,3.3637460682074098,816.85174560546875,3.4238470792770386,7.4124431610107422]
[null,null,null,null,null,null,null,null,null,null,null,"Apr",4.2584347724914551,1.9390257652594767,313.6182861328125,1.4486200014750164,7.6410999298095703]
[null,null,null,null,null,null,null,null,null,null,null,"May",10.442445755004883,2.7657379688545953,678.818115234375,2.7657379556086754,10.638034820556641]
[null,null,null,null,null,null,null,null,null,null,null,"Jun",13.181769371032715,3.4417913681437735,577.21551513671875,3.3218169709046683,11.170866966247559]
[null,null,null,null,null,null,null,null,null,null,null,"Jul",9.4705009460449219,2.8862777632476422,362.81216430664063,2.8870132894765947,13.000432968139648]
[null,null,null,null,null,null,null,null,null,null,null,"Aug",13.369589805603027,4.417551154870532,2358.036865234375,4.4895211512392219,17.363653182983398]
[null,null,null,null,null,null,null,null,null,null,null,"Sep",16.63597297668457,3.5634312809225448,735.0181884765625,3.5706056299663724,9.9756765365600586]
[null,null,null,null,null,null,null,null,null,null,null,"Oct",6.5504298210144043,2.2866089568166665,479.45315551757813,2.2885387155317489,7.7715001106262207]
[null,null,null,null,null,null,null,null,null,null,null,"Nov",1.2029910087585449,1.6873331962670717,855.93603515625,1.6873332182566325,8.8445320129394531]
["Comments :",null,null,null,null,null,null,null,null,null,null,"Dec",0.81125998497009277,1.0143982765871848,255.64239501953125,1.0143093880145782,2.6754670143127441]
["Environment Agency explanatory note: The 10-minute average ELV is based on the “95th percentile”. In this case this means that 95% of the 10 minute averages in the relevant 24-hour period (i.e. 137) must be below 150 mg/Nm3, and 5% (i.e. 7) are allowed to be any value above 150 mg/Nm3. Whilst we expect operators to minimise CO emissions at all times, it is perfectly acceptable for the value of the maximum 10-minute average to be above 150 mg/Nm3, provided the 95th percentile ELV has been met for that period. ",null,null,null,null,null,null,null,null,null,null,"Annual",{"$f":"AVERAGE(M40:M51)","v":9.6247571508089695},null,{"$f":"MAX(O40:O51)","v":2358.036865234375},{"$f":"AVERAGE(P40:P51)","v":2.8583378645681123},{"$f":"MAX(Q40:Q51)","v":17.363653182983398}]
[]
[null,null,null,null,null,null,null,null,null,null,{"$f":"+A8","v":2025},"mg/Nm3","Highest daily 95%ile 10-min average","Monthly mean of 10-min averages","Highest 10-min average","Monthly mean of  daily averages","Highest daily average"]
[null,null,null,null,null,null,null,null,null,null,"A4","Jan"]
[null,null,null,null,null,null,null,null,null,null,null,"Feb"]
[null,null,null,null,null,null,null,null,null,null,null,"Mar"]
[null,null,null,null,null,null,null,null,null,null,null,"Apr"]
[null,null,null,null,null,null,null,null,null,null,null,"May"]
[null,null,null,null,null,null,null,null,null,null,null,"Jun"]
[null,null,null,null,null,null,null,null,null,null,null,"Jul"]
[null,null,null,null,null,null,null,null,null,null,null,"Aug"]
[null,null,null,null,null,null,null,null,null,null,null,"Sep"]
[null,null,null,null,null,null,null,null,null,null,null,"Oct"]
[null,null,null,null,null,null,null,null,null,null,null,"Nov"]
[null,null,null,null,null,null,null,null,null,null,null,"Dec"]
[null,null,null,null,null,null,null,null,null,null,null,"Annual",{"$f":"AVERAGE(M55:M66)","v":{"$error":"#DIV/0!"}},null,{"$f":"MAX(O55:O66)","v":0},{"$f":"AVERAGE(P55:P66)","v":{"$error":"#DIV/0!"}},{"$f":"MAX(Q55:Q66)","v":0}]
[]
[null,null,null,null,null,null,null,null,null,null,{"$f":"+A8","v":2025},"mg/Nm3","95%ile 10-min avg maximum","Monthly CO 10-min avg mean","10-min avg maximum","Monthly daily mean","Monthly daily maximum"]
[null,null,null,null,null,null,null,null,null,null,"A5","Jan"]
[null,null,null,null,null,null,null,null,null,null,null,"Feb"]
[null,null,null,null,null,null,null,null,null,null,null,"Mar"]
[null,null,null,null,null,null,null,null,null,null,null,"Apr"]
[null,null,null,null,null,null,null,null,null,null,null,"May"]
[null,null,null,null,null,null,null,null,null,null,null,"Jun"]
[null,null,null,null,null,null,null,null,null,null,null,"Jul"]
[null,null,null,null,null,null,null,null,null,null,null,"Aug"]
[null,null,null,null,null,null,null,null,null,null,null,"Sep"]
[null,null,null,null,null,null,null,null,null,null,null,"Oct"]
[null,null,null,null,null,null,null,null,null,null,null,"Nov"]
[null,null,null,null,null,null,null,null,null,null,null,"Dec"]
[null,null,null,null,null,null,null,null,null,null,null,"Annual",{"$f":"AVERAGE(M70:M81)","v":{"$error":"#DIV/0!"}},null,{"$f":"MAX(O70:O81)","v":0},{"$f":"AVERAGE(P70:P81)","v":{"$error":"#DIV/0!"}},{"$f":"MAX(Q70:Q81)","v":0}]

{"sheet":"NH3","index":21,"n_rows":79,"n_cols":17,"rows_kept":79,"cut":false,"hidden":false,"merged":[[3,16,7,18],[9,16,11,18],[12,16,15,18],[66,9,78,9],[4,1,4,3],[4,4,4,6],[4,9,4,14],[6,9,18,9],[21,9,33,9],[36,9,48,9],[47,0,47,6],[48,0,51,6],[51,9,63,9],[18,4,18,6]]}
[{"$f":"+'Cover Page'!$B$29","v":"Annual Performance Report 2025"},null,null,null,{"$f":"+'Cover Page'!$B$33","v":"Kent Enviropower Limited"}]
[]
["Monitoring of Ammnonia emissions ",null,null,"Whole Installation",null,null,"See  Notes in Cell Q3",null,null,{"$f":"+A3","v":"Monitoring of Ammnonia emissions "},null,null,null,"Per Combustion Line",null,null,"Notes:"]
[null,null,null,null,null,null,null,null,null,null,null,null,null,null,null,null,"User to add logic to complete Whole installation, Table A5:G18. From the data in Per Combustion Line, Table J6:O79, subject to No. of lines installed"]
[{"$f":"+'Cover Page'!C39","v":2025},"1/2 Hourly Reference Periods",null,null,"Daily Reference Periods"]
["mg/Nm3","1/2 hourly NH3 ELV","Monthly mean of half-hourly averages","Highest half- hourly average","Daily NH3 ELV","Monthly mean of  daily averages","Highest daily average",null,null,{"$f":"+A5","v":2025},"mg/Nm3","Monthly mean of half-hourly averages","Highest half- hourly average","Monthly mean of  daily averages","Highest daily average"]
["Jan","None",{"$f":"AVERAGE(L7,L22,L37)","v":9.0185686491447981E-2},{"$f":"AVERAGE(M7,M22,M37)","v":5.0109766324361162},10,{"$f":"AVERAGE(N7,N22,N37)","v":8.9442752392909455E-2},{"$f":"AVERAGE(O7,O22,O37)","v":0.2268689995010694},null,null,"A1","Jan",3.3020727305759549E-2,1.5121359825134277,3.3020741741863952E-2,0.10061600059270859]
["Feb",{"$f":"+B7","v":"None"},{"$f":"AVERAGE(L8,L23,L38)","v":0.10218211647175235},2.1026753584543862,10,{"$f":"AVERAGE(N8,N23,N38)","v":0.10058222049065717},0.24409866333007813,null,null,null,"Feb",3.1600882267134305E-2,0.57848000526428223,3.0993730796930883E-2,6.6751003265380859E-2]
["Mar",{"$f":"+B8","v":"None"},{"$f":"AVERAGE(L9,L24,L39)","v":8.2236875020579511E-2},3.9371426900227866,10,{"$f":"AVERAGE(N9,N24,N39)","v":8.0223612427189547E-2},0.18958033124605814,null,null,null,"Mar",3.2627036833292766E-2,8.0385799407958984,2.5269607331470718E-2,0.12156400084495544,null,"Whole Installation table A5:G18:"]
["Apr","None",{"$f":"AVERAGE(L10,L25,L40)","v":6.9918611224529234E-2},1.8629233439763386,10,{"$f":"AVERAGE(N10,N25,N40)","v":6.9066503659239289E-2},0.176213338971138,null,null,null,"Apr",4.5842066112359539E-2,1.7252629995346069,4.6552895029124464E-2,0.11067800223827362,null,"Mean: for 1/2 hourly and daily periods calculate mean of values across all operational combustion lines for the month"]
["May","None",{"$f":"AVERAGE(L11,L26,L41)","v":8.934949737444596E-2},4.4593945741653442,10,{"$f":"AVERAGE(N11,N26,N41)","v":8.7595297665398655E-2},0.36277899642785388,null,null,null,"May",5.677126345575724E-2,1.9946659803390503,5.6771193202885407E-2,0.20197199285030365]
["Jun","None",{"$f":"AVERAGE(L12,L27,L42)","v":0.13308313818962078},9.6391244729359951,10,{"$f":"AVERAGE(N12,N27,N42)","v":0.12039911430567253},0.30767365545034409,null,null,null,"Jun",7.0823420442360563E-2,16.436784744262695,4.2229821340047886E-2,9.3074001371860504E-2]
["Jul","None",{"$f":"AVERAGE(L13,L28,L43)","v":0.12178519216089069},8.89814575513204,10,{"$f":"AVERAGE(N13,N28,N43)","v":0.11735109780304215},0.24256466825803122,null,null,null,"Jul",0.10126384011410801,20.23741340637207,8.494311954826117E-2,0.19575099647045135,null,"Maximum: for 1/2 hourly and daily periods use the highest value across all operational combustion lines for the month"]
["Aug","None",{"$f":"AVERAGE(L14,L29,L44)","v":0.15673738041405752},14.774130900700888,10,{"$f":"AVERAGE(N14,N29,N44)","v":0.15517525021942663},0.76827166477839148,null,null,null,"Aug",0.1678176498245661,31.720603942871094,0.16968503646138641,1.3844180107116699]
["Sep","None",{"$f":"AVERAGE(L15,L30,L45)","v":0.16452759438364725},6.1308409372965498,10,{"$f":"AVERAGE(N15,N30,N45)","v":0.15196576692556363},0.29033700625101727,null,null,null,"Sep",0.14172080012057148,10.907698631286621,0.11762836431576447,0.27096700668334961]
["Oct","None",{"$f":"AVERAGE(L16,L31,L46)","v":0.45417508370019172},4.6336892445882158,10,{"$f":"AVERAGE(N16,N31,N46)","v":0.44494286146066431},0.83106833696365356,null,null,null,"Oct",0.68420485017941468,9.0146608352661133,0.67309782095253468,1.0710079669952393]
["Nov","None",{"$f":"AVERAGE(L17,L32,L47)","v":0.67580120152542345},6.6425704161326093,10,{"$f":"AVERAGE(N17,N32,N47)","v":0.67124417885005128},0.9430193305015564,null,null,null,"Nov",0.88432350957216477,11.462386131286621,0.87216604383368246,1.343654990196228]
["Dec","None",{"$f":"AVERAGE(L18,L33,L48)","v":0.69302947504580681},5.4955622355143232,10,{"$f":"AVERAGE(N18,N33,N48)","v":0.68896277627589841},0.94075000286102295,null,null,null,"Dec",0.88882643269797645,7.7953557968139648,0.8866851815470943,1.3320009708404541]
[null,null,null,null,null,null,null,null,null,null,"Annual",{"$f":"AVERAGE(L7:L18)","v":0.2615702065771221},{"$f":"MAX(M7:M18)","v":31.720603942871094},{"$f":"AVERAGE(N7:N18)","v":0.25325362967508724},{"$f":"MAX(O7:O18)","v":1.3844180107116699}]
[]
[null,null,null,null,null,null,null,null,null,{"$f":"+A5","v":2025},"mg/Nm3","Monthly mean of half-hourly averages","Highest half- hourly average","Monthly mean of  daily averages","Highest daily average"]
[null,null,null,null,null,null,null,null,null,"A2","Jan",8.0828124571439022E-2,1.1083250045776367,8.0657347874796906E-2,0.16503499448299408]
[null,null,null,null,null,null,null,null,null,null,"Feb",9.6253361503413598E-2,2.6564309597015381,9.4532409344207161E-2,0.16893699765205383]
[null,null,null,null,null,null,null,null,null,null,"Mar",0.10446365125235596,2.6134591102600098,0.10451738421733563,0.23212899267673492]
[null,null,null,null,null,null,null,null,null,null,"Apr",7.6614156883936496E-2,2.3224530220031738,7.4609948224142977E-2,0.16731700301170349]
[null,null,null,null,null,null,null,null,null,null,"May",0.10007729990077315,8.5577077865600586,9.4814666857322052E-2,0.50929099321365356]
[null,null,null,null,null,null,null,null,null,null,"Jun",0.21137671001228844,10.26507568359375,0.20518855899572372,0.50174397230148315]
[null,null,null,null,null,null,null,null,null,null,"Jul",0.16346971967737187,4.1299829483032227,0.16648381948471069,0.3524630069732666]
[null,null,null,null,null,null,null,null,null,null,"Aug",0.1977566221583382,9.7022428512573242,0.19230289628793454,0.56640899181365967]
[null,null,null,null,null,null,null,null,null,null,"Sep",0.22466359180722859,4.7051692008972168,0.21417460367083549,0.32618001103401184]
[null,null,null,null,null,null,null,null,null,null,"Oct",0.32624932122187567,2.5916659832000732,0.31001150129096849,0.62462902069091797]
[null,null,null,null,null,null,null,null,null,null,"Nov",0.50976833590308601,3.8803699016571045,0.50825476408004766,0.67422902584075928]
[null,null,null,null,null,null,null,null,null,null,"Dec",0.57803332878118141,6.0278439521789551,0.56797450184822085,0.83497601747512817]
[null,null,null,null,null,null,null,null,null,null,"Annual",{"$f":"AVERAGE(L22:L33)","v":0.22246285197277404},{"$f":"MAX(M22:M33)","v":10.26507568359375},{"$f":"AVERAGE(N22:N33)","v":0.21779353351468719},{"$f":"MAX(O22:O33)","v":0.83497601747512817}]
[]
[null,null,null,null,null,null,null,null,null,{"$f":"+A5","v":2025},"mg/Nm3","Monthly mean of half-hourly averages","Highest half- hourly average","Monthly mean of  daily averages","Highest daily average"]
[null,null,null,null,null,null,null,null,null,"A3","Jan",0.1567082075971454,12.412468910217285,0.15465016756206751,0.41495600342750549]
[null,null,null,null,null,null,null,null,null,null,"Feb",0.17869210564470911,3.0731151103973389,0.17622052133083344,0.49660798907279968]
[null,null,null,null,null,null,null,null,null,null,"Mar",0.10961993697608979,1.1593890190124512,0.11088384573276226,0.21504800021648407]
[null,null,null,null,null,null,null,null,null,null,"Apr",8.7299610677291639E-2,1.5410540103912354,8.6036667724450427E-2,0.25064501166343689]
[null,null,null,null,null,null,null,null,null,null,"May",0.11119992876680748,2.8258099555969238,0.11120003293598851,0.37707400321960449]
[null,null,null,null,null,null,null,null,null,null,"Jun",0.11704928411421339,2.2155129909515381,0.11377896258124599,0.3282029926776886]
[null,null,null,null,null,null,null,null,null,null,"Jul",0.10062201669119218,2.3270409107208252,0.10062635437615457,0.17948000133037567]
[null,null,null,null,null,null,null,null,null,null,"Aug",0.10463786925926831,2.8995459079742432,0.10353781790895895,0.35398799180984497]
[null,null,null,null,null,null,null,null,null,null,"Sep",0.12719839122314175,2.7796549797058105,0.12409433279009092,0.27386400103569031]
[null,null,null,null,null,null,null,null,null,null,"Oct",0.35207107969928508,2.2947409152984619,0.35171926213848975,0.79756802320480347]
[null,null,null,null,null,null,null,null,null,null,"Nov",0.63331175910102,4.5849552154541016,0.63331172863642371,0.81117397546768188]
["Comments :",null,null,null,null,null,null,null,null,null,"Dec",0.61222866365826256,2.6634869575500488,0.61222864543237998,0.65527302026748657]
["An indicated ELV value of zero in the table above means that no ammonia limit is/was set in the permit.  ",null,null,null,null,null,null,null,null,null,"Annual",{"$f":"AVERAGE(L37:L48)","v":0.2242199044507022},{"$f":"MAX(M37:M48)","v":12.412468910217285},{"$f":"AVERAGE(N37:N48)","v":0.22319069492915386},{"$f":"MAX(O37:O48)","v":0.81117397546768188}]
[]
[null,null,null,null,null,null,null,null,null,{"$f":"+A5","v":2025},"mg/Nm3","Monthly mean of half-hourly averages","Highest half- hourly average","Monthly mean of  daily averages","Highest daily average"]
[null,null,null,null,null,null,null,null,null,"A4","Jan"]
[null,null,null,null,null,null,null,null,null,null,"Feb"]
[null,null,null,null,null,null,null,null,null,null,"Mar"]
[null,null,null,null,null,null,null,null,null,null,"Apr"]
[null,null,null,null,null,null,null,null,null,null,"May"]
[null,null,null,null,null,null,null,null,null,null,"Jun"]
[null,null,null,null,null,null,null,null,null,null,"Jul"]
[null,null,null,null,null,null,null,null,null,null,"Aug"]
[null,null,null,null,null,null,null,null,null,null,"Sep"]
[null,null,null,null,null,null,null,null,null,null,"Oct"]
[null,null,null,null,null,null,null,null,null,null,"Nov"]
[null,null,null,null,null,null,null,null,null,null,"Dec"]
[null,null,null,null,null,null,null,null,null,null,"Annual",{"$f":"AVERAGE(L52:L63)","v":{"$error":"#DIV/0!"}},{"$f":"MAX(M52:M63)","v":0},{"$f":"AVERAGE(N52:N63)","v":{"$error":"#DIV/0!"}},{"$f":"MAX(O52:O63)","v":0}]
[]
[null,null,null,null,null,null,null,null,null,{"$f":"+A5","v":2025},"mg/Nm3","Monthly mean of half-hourly averages","Highest half- hourly average","Monthly mean of  daily averages","Highest daily average"]
[null,null,null,null,null,null,null,null,null,"A5","Jan"]
[null,null,null,null,null,null,null,null,null,null,"Feb"]
[null,null,null,null,null,null,null,null,null,null,"Mar"]
[null,null,null,null,null,null,null,null,null,null,"Apr"]
[null,null,null,null,null,null,null,null,null,null,"May"]
[null,null,null,null,null,null,null,null,null,null,"Jun"]
[null,null,null,null,null,null,null,null,null,null,"Jul"]
[null,null,null,null,null,null,null,null,null,null,"Aug"]
[null,null,null,null,null,null,null,null,null,null,"Sep"]
[null,null,null,null,null,null,null,null,null,null,"Oct"]
[null,null,null,null,null,null,null,null,null,null,"Nov"]
[null,null,null,null,null,null,null,null,null,null,"Dec"]
[null,null,null,null,null,null,null,null,null,null,"Annual",{"$f":"AVERAGE(L67:L78)","v":{"$error":"#DIV/0!"}},{"$f":"MAX(M67:M78)","v":0},{"$f":"AVERAGE(N67:N78)","v":{"$error":"#DIV/0!"}},{"$f":"MAX(O67:O78)","v":0}]

{"sheet":"Template changes log","index":22,"n_rows":23,"n_cols":3,"rows_kept":23,"cut":false,"hidden":false,"merged":[]}
["Log of changes to template (Environment Agency use only)"]
[]
["Date","Description of change","New version number and date"]
["2024-01-16","Air (periodic) tab: corrected default O2 reference from 6 to 11% ","Version 23.5a (for incinerators) - 16/01/2024"]
["2024-09-23","Air (periodic) tab: corrected symbol for Thallium to Tl"]
["2024-09-23","Air (periodic) tab: removed last year's references to different emission limit values applying from 03/12/23 and updated all relevant ELVs"]
["2024-09-23","Tabs for continuously monitored pollutants (HCl, SO2 etc.): changed terminology in table headings to improve clarity"]
["2024-09-23","Tabs for continuously monitored pollutants (HCl, SO2 etc.): removed last year's references to different emission limit values applying from 03/12/23 and updated all relevant ELVs"]
["2024-09-23","Perf 1 tab: updated formula for water usage to report m3 rather than litres and corrected error with formula copying operator name"]
["2024-09-23","Operational Summary tab: table added on start-ups and shut-downs"]
["2024-09-23","Operational Summary tab: table added on dioxins and mercury protocols"]
["2024-09-23","Operational Summary tab: table added on AST, QAL 2 and calibration functions"]
["2024-09-23","CO2 N2O tab: various changes made to notes to reflect the fact that most plants should now have calibrated CEMS and flow meters + some have C14 samplers and more up to date industry data","Version 24a (for incinerators) - 23/09/24"]
["2024-11-08","CO2 N2O tab: Changed the N2O CO2 equivalence factor from 298 to 265 in line with recently updated government greenhouse gas figures: https://www.gov.uk/government/publications/greenhouse-gas-reporting-conversion-factors-2024"]
["2024-11-08","CO2 N2O tab: Added an additional requirement for municipal EfW plants to state the yearly average biogenic percentage of the waste by mass, and reference to a document which sets out a methodology for calculating NCV of waste from the results of C14 sampling."]
["2024-11-08","Permit Compliance tab: Two additional columns added + explanatory notes to the table entitled \"Summary of non-compliances under the permit\" to allow CCS scores to be stated where relevant. "]
["2024-11-08","Residue Quality tab: Note added explaining application of TOC and LOI limits and asking operators to report both metrics where measured. ","Version 24.1a (for incinerators) - 08/11/24"]
["2024-11-27","Operational Summary tab: table added on start-ups and shut-downs","Version 24.2a (for incinerators) - 27/11/24"]
["2025-11-27","Cover Page: Print as PDF and Print Report and pdf buttons deleted and blank columns removed; contents page deleted","Version 25.1a (for incinerators) - 27/11/25"]
["2025-11-27","Residue Quality tab renamed to \"Residues\", and Summary of residue handling table moved from Operational Summary tab to Residues tab."]
["2025-11-27","Various changes made to the Operational Data tab including\n•\tReformatting of the rows under the Operational data heading (Rows 3-8) to make it clearer what information is required. \n•\tAmendment of the rows under the Energy Usage / Export heading (Rows 26-32) to calculate an “indicative parasitic load” (now excluding energy imported)\n•\tAmendment of the unit for gas usage from cubic feet to cubic metres (Row 50) \n•\tSome amendments to the first 2 notes and other minor edits\n•\tDeleted \"Overall Availability, mean avg. of all lines, hrs\" row"]
["2025-11-27","Operational Summary tab: Note added requiring all emergency shut-downs be listed, irrespective of whether or not they were reportable. "]
["2025-11-27","CO2 N2O tab: Note added to ask operators to ensure that relevant data reported here matches that which will be submitted under the Pollution Inventory"]